Workbook

Sheet Instructions
B1: Project: | D1: NYISO ICAP Demand Curve
B2: Date: | D2: 2021-04-12
B3: Worksheet: | D3: Instructions
B5: Instructions for Using NYISO ICAP Demand Curve Workbook
B8: Steps:
B10: 1 | C10: Collect index information from BLS and BEA websites and update Escalation Factor in "Escalation Factor" Worksheet
B11: 2 | C11: Update Net EAS Revenues in "Net EAS" Worksheet
B12: 3 | C12: Update Winter-Summer Ratio in "Winter-Summer Ratio" Worksheet
B13: 4 | C13: Save Previous DCR values in "Demand Curve Results" Worksheet
B14: 5 | C14: Update and run DCR model, using "Multiple Scenario Output" Worksheet

Sheet Glossary
B1: Project: | C1: NYISO ICAP Demand Curve
B2: Date: | C2: 2021-04-12
B3: Worksheet: | C3: Glossary
B5: Glossary of Named Ranges
B8: Named Range | C8: Name
B9: Annual_Reference_Value | C9: Annual Reference Value ($/kW-Year)
B10: ATWACC | C10: After Tax Weighted Average Cost of Capital (%)
B11: ATWACC_Real | C11: After Tax Weighted Average Cost of Capital (Real, %)
B12: Capability_Year | C12: Capability Year
B13: Capacity_at_LOE | C13: Capacity at LOE Conditions (%)
B14: Capital_Costs | C14: Overnight Capital Costs ($/kW-Year)
B15: CC_Flag | C15: CC Plant Flag
B16: Debt_Fraction | C16: Debt Fraction (%)
B17: Debt_Rate | C17: Debt Rate (%)
B18: Debt_Rate_Real | C18: Debt Rate (Real, %)
B19: DMNC_ICAP | C19: DMNC ICAP (MW)
B20: DMNC_Summer | C20: DMNC Summer (MW)
B21: DMNC_Winter | C21: DMNC Winter (MW)
B22: EAS | C22: Net Energy and Ancillary Services ($/kW-Year)
B23: EAS_Fuel_Type | C23: EAS Fuel Type
B24: Effective_Tax_Rate | C24: Effective Tax Rate (%)
B25: Equity_Rate | C25: Equity Rate (%)
B26: Equity_Rate_Real | C26: Equity Rate (Real, %)
B27: Escalation_Factor | C27: Escalation Factor (%)
B28: Escalation_Factor_Table | C28: Table of all Escalation Factors for all units
B29: FixedOM_Site_Lease | C29: Fixed O&M + Site Lease (Includes Property Taxes and Insurance, $/kW-Year)
B30: Fuel_Type | C30: Fuel Type
B31: Gross CONE | C31: Gross CONE ($/kW-Year)
B32: Inflation_Factor | C32: Inflation Factor (%)
B33: Insurance_Rate | C33: Insurance Rate (%)
B34: IRM | C34: Installed Reserve Margin (or Locational Capacity Requirement, %)
B35: Levelized_Charge | C35: Levelized Fixed Charge (%)
B36: Maximum_Price_Multiple | C36: Maximum price (Multiple of Annualized Capital Cost)
B37: Maximum_Price_Type | C37: Specifies which Maximum Clearing Price calculation is used in the model (always "NYISO Staff Recommendation")
B38: Multiple_Scenario_Lookup | C38: Array of Values Used to Lookup Model Results from the Multiple Scenario Output
B39: Multiple_Scenario_Output | C39: Output from the Multiple Scenario Output
B40: Multiple_Scenario_Vars | C40: Variables Included in Multiple Scenario Output
B41: Peak_Load | C41: Peak Load (Average of Gold Book Peak Load Values for 2017 - 2021, MW)
B42: Plant_Life | C42: Plant Life (Years)
B43: Property_Tax_Rate | C43: Property Tax Rate (%)
B44: PropTax_Abate | C44: Property Tax Abatement Flag
B45: Region | C45: Region (Zone)
B46: Total_EPC_Capital_Costs | C46: Total EPC Costs ($/kW-Year)
B47: Unit | C47: Unit/Technology
B48: VSS_Adder | C48: Estimated Voltage Support Services revenues for all non-CC resources ($/kW-Year)
B49: WSR | C49: Winter-to-Summer Ratio
B50: ZCP | C50: Zero Crossing Point (Margin Over 100%)

Sheet Demand Curve Results
D1: Project: | F1: NYISO ICAP Demand Curve
D2: Date: | F2: 2021-04-12
D3: Worksheet: | F3: Demand Curve Results
D5: Instructions: | F5: Current ICAP Demand Curve Parameters are linked to "Multiple Scenario Output" Table.
F6: Before completing an annual update, copy values from "Current Parameters" section and paste values into "Historical Values" section to save results from previous years.
D8: Current ICAP Demand Curve Parameters
E11: ="Current Year ("&Capability_Year&")" -> Current Year (2021-2022)
F12: C - Central | G12: G - Hudson Valley (Rockland) | H12: J - New York City | I12: K - Long Island
E13: Source | F13: C - Central | G13: G - Hudson Valley (Rockland) | H13: J - New York City | I13: K - Long Island
A14: Gross CONE ($/kW-Year) | D14: Gross Cost of New Entry ($/kW-Year) | E14: [1] | F14: =INDEX('Multiple Scenario Output'!$A$31:$AM$36, MATCH(F$12,'Multiple Scenario Output'!$C$31:$C$36, 0), MATCH($A14, 'Multiple Scenario Output'!$A$31:$AM$31, 0)) -> 107.0668 | G14: =INDEX('Multiple Scenario Output'!$A$31:$AM$36, MATCH(G$12,'Multiple Scenario Output'!$C$31:$C$36, 0), MATCH($A14, 'Multiple Scenario Output'!$A$31:$AM$31, 0)) -> 139.6283 | H14: =INDEX('Multiple Scenario Output'!$A$31:$AM$36, MATCH(H$12,'Multiple Scenario Output'!$C$31:$C$36, 0), MATCH($A14, 'Multiple Scenario Output'!$A$31:$AM$31, 0)) -> 188.5321 | I14: =INDEX('Multiple Scenario Output'!$A$31:$AM$36, MATCH(I$12,'Multiple Scenario Output'!$C$31:$C$36, 0), MATCH($A14, 'Multiple Scenario Output'!$A$31:$AM$31, 0)) -> 148.9654
A15: Net EAS ($/kW-Year) | D15: Net EAS Revenue ($/kW-Year) | E15: [2] | F15: =INDEX('Multiple Scenario Output'!$A$31:$AM$36, MATCH(F$12,'Multiple Scenario Output'!$C$31:$C$36, 0), MATCH($A15, 'Multiple Scenario Output'!$A$31:$AM$31, 0)) -> 32.916 | G15: =INDEX('Multiple Scenario Output'!$A$31:$AM$36, MATCH(G$12,'Multiple Scenario Output'!$C$31:$C$36, 0), MATCH($A15, 'Multiple Scenario Output'!$A$31:$AM$31, 0)) -> 35.1513 | H15: =INDEX('Multiple Scenario Output'!$A$31:$AM$36, MATCH(H$12,'Multiple Scenario Output'!$C$31:$C$36, 0), MATCH($A15, 'Multiple Scenario Output'!$A$31:$AM$31, 0)) -> 33.4167 | I15: =INDEX('Multiple Scenario Output'!$A$31:$AM$36, MATCH(I$12,'Multiple Scenario Output'!$C$31:$C$36, 0), MATCH($A15, 'Multiple Scenario Output'!$A$31:$AM$31, 0)) -> 54.1461
A16: Annual Reference Value ($/kW-Year) | D16: Annual ICAP Reference Value ($/kW-Year) | E16: [3] = [1] - [2] | F16: =INDEX('Multiple Scenario Output'!$A$31:$AM$36, MATCH(F$12,'Multiple Scenario Output'!$C$31:$C$36, 0), MATCH($A16, 'Multiple Scenario Output'!$A$31:$AM$31, 0)) -> 74.1507 | G16: =INDEX('Multiple Scenario Output'!$A$31:$AM$36, MATCH(G$12,'Multiple Scenario Output'!$C$31:$C$36, 0), MATCH($A16, 'Multiple Scenario Output'!$A$31:$AM$31, 0)) -> 104.477 | H16: =INDEX('Multiple Scenario Output'!$A$31:$AM$36, MATCH(H$12,'Multiple Scenario Output'!$C$31:$C$36, 0), MATCH($A16, 'Multiple Scenario Output'!$A$31:$AM$31, 0)) -> 155.1154 | I16: =INDEX('Multiple Scenario Output'!$A$31:$AM$36, MATCH(I$12,'Multiple Scenario Output'!$C$31:$C$36, 0), MATCH($A16, 'Multiple Scenario Output'!$A$31:$AM$31, 0)) -> 94.8193
A18: DMNC ICAP (MW) | D18: ICAP DMNC (MW) | E18: [4] | F18: =INDEX('Multiple Scenario Output'!$A$31:$AM$36, MATCH(F$12,'Multiple Scenario Output'!$C$31:$C$36, 0), MATCH($A18, 'Multiple Scenario Output'!$A$31:$AM$31, 0)) -> 326.7 | G18: =INDEX('Multiple Scenario Output'!$A$31:$AM$36, MATCH(G$12,'Multiple Scenario Output'!$C$31:$C$36, 0), MATCH($A18, 'Multiple Scenario Output'!$A$31:$AM$31, 0)) -> 347 | H18: =INDEX('Multiple Scenario Output'!$A$31:$AM$36, MATCH(H$12,'Multiple Scenario Output'!$C$31:$C$36, 0), MATCH($A18, 'Multiple Scenario Output'!$A$31:$AM$31, 0)) -> 348.8 | I18: =INDEX('Multiple Scenario Output'!$A$31:$AM$36, MATCH(I$12,'Multiple Scenario Output'!$C$31:$C$36, 0), MATCH($A18, 'Multiple Scenario Output'!$A$31:$AM$31, 0)) -> 348.8
D19: Total Annual Reference Value | E19: [5] = [3] * [4] | F19: =F16*1000*F18 -> 24225033.69 | G19: =G16*1000*G18 -> 36253519 | H19: =H16*1000*H18 -> 54104251.52 | I19: 33072971.84
A20: Capacity at LOE Conditions | D20: Level of Excess (%) | E20: [6] | F20: =INDEX('Multiple Scenario Output'!$A$31:$AM$36, MATCH(F$12,'Multiple Scenario Output'!$C$31:$C$36, 0), MATCH($A20, 'Multiple Scenario Output'!$A$31:$AM$31, 0)) -> 1.008507825 | G20: =INDEX('Multiple Scenario Output'!$A$31:$AM$36, MATCH(G$12,'Multiple Scenario Output'!$C$31:$C$36, 0), MATCH($A20, 'Multiple Scenario Output'!$A$31:$AM$31, 0)) -> 1.024565502 | H20: =INDEX('Multiple Scenario Output'!$A$31:$AM$36, MATCH(H$12,'Multiple Scenario Output'!$C$31:$C$36, 0), MATCH($A20, 'Multiple Scenario Output'!$A$31:$AM$31, 0)) -> 1.035093784 | I20: =INDEX('Multiple Scenario Output'!$A$31:$AM$36, MATCH(I$12,'Multiple Scenario Output'!$C$31:$C$36, 0), MATCH($A20, 'Multiple Scenario Output'!$A$31:$AM$31, 0)) -> 1.064536207
A21: Winter-Summer Ratio | D21: Ratio of Summer to Winter DMNCs | E21: [7] | F21: =INDEX('Multiple Scenario Output'!$A$31:$AM$36, MATCH(F$12,'Multiple Scenario Output'!$C$31:$C$36, 0), MATCH($A21, 'Multiple Scenario Output'!$A$31:$AM$31, 0)) -> 1.038 | G21: =INDEX('Multiple Scenario Output'!$A$31:$AM$36, MATCH(G$12,'Multiple Scenario Output'!$C$31:$C$36, 0), MATCH($A21, 'Multiple Scenario Output'!$A$31:$AM$31, 0)) -> 1.059 | H21: =INDEX('Multiple Scenario Output'!$A$31:$AM$36, MATCH(H$12,'Multiple Scenario Output'!$C$31:$C$36, 0), MATCH($A21, 'Multiple Scenario Output'!$A$31:$AM$31, 0)) -> 1.076 | I21: =INDEX('Multiple Scenario Output'!$A$31:$AM$36, MATCH(I$12,'Multiple Scenario Output'!$C$31:$C$36, 0), MATCH($A21, 'Multiple Scenario Output'!$A$31:$AM$31, 0)) -> 1.073
A22: DMNC summer (MW) | D22: Summer DMNC (MW) | E22: [8] | F22: =INDEX('Multiple Scenario Output'!$A$31:$AM$36, MATCH(F$12,'Multiple Scenario Output'!$C$31:$C$36, 0), MATCH($A22, 'Multiple Scenario Output'!$A$31:$AM$31, 0)) -> 329.3 | G22: =INDEX('Multiple Scenario Output'!$A$31:$AM$36, MATCH(G$12,'Multiple Scenario Output'!$C$31:$C$36, 0), MATCH($A22, 'Multiple Scenario Output'!$A$31:$AM$31, 0)) -> 348.2 | H22: =INDEX('Multiple Scenario Output'!$A$31:$AM$36, MATCH(H$12,'Multiple Scenario Output'!$C$31:$C$36, 0), MATCH($A22, 'Multiple Scenario Output'!$A$31:$AM$31, 0)) -> 348.5 | I22: =INDEX('Multiple Scenario Output'!$A$31:$AM$36, MATCH(I$12,'Multiple Scenario Output'!$C$31:$C$36, 0), MATCH($A22, 'Multiple Scenario Output'!$A$31:$AM$31, 0)) -> 351.1
A23: DMNC winter (MW) | D23: Winter DMNC (MW) | E23: [9] | F23: =INDEX('Multiple Scenario Output'!$A$31:$AM$36, MATCH(F$12,'Multiple Scenario Output'!$C$31:$C$36, 0), MATCH($A23, 'Multiple Scenario Output'!$A$31:$AM$31, 0)) -> 344.7 | G23: =INDEX('Multiple Scenario Output'!$A$31:$AM$36, MATCH(G$12,'Multiple Scenario Output'!$C$31:$C$36, 0), MATCH($A23, 'Multiple Scenario Output'!$A$31:$AM$31, 0)) -> 369.9 | H23: =INDEX('Multiple Scenario Output'!$A$31:$AM$36, MATCH(H$12,'Multiple Scenario Output'!$C$31:$C$36, 0), MATCH($A23, 'Multiple Scenario Output'!$A$31:$AM$31, 0)) -> 374.1 | I23: =INDEX('Multiple Scenario Output'!$A$31:$AM$36, MATCH(I$12,'Multiple Scenario Output'!$C$31:$C$36, 0), MATCH($A23, 'Multiple Scenario Output'!$A$31:$AM$31, 0)) -> 373
D25: Assumed Capacity Prices at Tariff Prescribed Level of Excess Conditions
A26: Level of Excess Clearing Price (Summer) | D26: Summer ($/kW-Month) | E26: [10] | F26: =INDEX('Multiple Scenario Output'!$A$31:$AM$36, MATCH(F$12,'Multiple Scenario Output'!$C$31:$C$36, 0), MATCH($A26, 'Multiple Scenario Output'!$A$31:$AM$31, 0)) -> 7.255 | G26: =INDEX('Multiple Scenario Output'!$A$31:$AM$36, MATCH(G$12,'Multiple Scenario Output'!$C$31:$C$36, 0), MATCH($A26, 'Multiple Scenario Output'!$A$31:$AM$31, 0)) -> 11.1048 | H26: =INDEX('Multiple Scenario Output'!$A$31:$AM$36, MATCH(H$12,'Multiple Scenario Output'!$C$31:$C$36, 0), MATCH($A26, 'Multiple Scenario Output'!$A$31:$AM$31, 0)) -> 17.1305 | I26: =INDEX('Multiple Scenario Output'!$A$31:$AM$36, MATCH(I$12,'Multiple Scenario Output'!$C$31:$C$36, 0), MATCH($A26, 'Multiple Scenario Output'!$A$31:$AM$31, 0)) -> 11.289
A27: Level of Excess Clearing Price (Winter) | D27: Winter ($/kW-Month) | E27: [11] | F27: =INDEX('Multiple Scenario Output'!$A$31:$AM$36, MATCH(F$12,'Multiple Scenario Output'!$C$31:$C$36, 0), MATCH($A27, 'Multiple Scenario Output'!$A$31:$AM$31, 0)) -> 4.7823 | G27: =INDEX('Multiple Scenario Output'!$A$31:$AM$36, MATCH(G$12,'Multiple Scenario Output'!$C$31:$C$36, 0), MATCH($A27, 'Multiple Scenario Output'!$A$31:$AM$31, 0)) -> 5.8815 | H27: =INDEX('Multiple Scenario Output'!$A$31:$AM$36, MATCH(H$12,'Multiple Scenario Output'!$C$31:$C$36, 0), MATCH($A27, 'Multiple Scenario Output'!$A$31:$AM$31, 0)) -> 8.1459 | I27: =INDEX('Multiple Scenario Output'!$A$31:$AM$36, MATCH(I$12,'Multiple Scenario Output'!$C$31:$C$36, 0), MATCH($A27, 'Multiple Scenario Output'!$A$31:$AM$31, 0)) -> 4.1517
D29: Monthly Revenue (Summer) | E29: [12] = [10]*[8] | F29: =F26*F22*1000 -> 2389071.5 | G29: =G26*G22*1000 -> 3866691.36 | H29: =H26*H22*1000 -> 5969979.25 | I29: 3963567.9
D30: Monthly Revenue (Winter) | E30: [13] = [11]*[9] | F30: =F27*F23*1000 -> 1648458.81 | G30: =G27*G23*1000 -> 2175566.85 | H30: 3047381.19 | I30: 1548584.1
D32: Seasonal Revenue (Summer) | E32: [14] = 6 * [12] | F32: =F29*6 -> 14334429 | G32: =G29*6 -> 23200148.16 | H32: =H29*6 -> 35819875.5 | I32: 23781407.4
D33: Seasonal Revenue (Winter) | E33: [15] = 6 * [13] | F33: =F30*6 -> 9890752.86 | G33: =G30*6 -> 13053401.1 | H33: 18284287.14 | I33: 9291504.6
D34: Total Annual Reference Value | E34: [16] = [14]+[15] | F34: =SUM(F32:F33) -> 24225181.86 | G34: =SUM(G32:G33) -> 36253549.26 | H34: =SUM(H32:H33) -> 54104162.64 | I34: 33072912
D36: ICAP Demand Curve Parameters
A37: Monthly Reference Point Price ($/kW-month) | D37: ICAP Monthly Reference Point Price ($/kW-Month) | F37: =INDEX('Multiple Scenario Output'!$A$31:$AM$36, MATCH(F$12,'Multiple Scenario Output'!$C$31:$C$36, 0), MATCH($A37, 'Multiple Scenario Output'!$A$31:$AM$31, 0)) -> 7.8086 | G37: =INDEX('Multiple Scenario Output'!$A$31:$AM$36, MATCH(G$12,'Multiple Scenario Output'!$C$31:$C$36, 0), MATCH($A37, 'Multiple Scenario Output'!$A$31:$AM$31, 0)) -> 13.2796 | H37: =INDEX('Multiple Scenario Output'!$A$31:$AM$36, MATCH(H$12,'Multiple Scenario Output'!$C$31:$C$36, 0), MATCH($A37, 'Multiple Scenario Output'!$A$31:$AM$31, 0)) -> 21.2792 | I37: =INDEX('Multiple Scenario Output'!$A$31:$AM$36, MATCH(I$12,'Multiple Scenario Output'!$C$31:$C$36, 0), MATCH($A37, 'Multiple Scenario Output'!$A$31:$AM$31, 0)) -> 17.5988
A38: Maximum Clearing Price ($/kW-month) | D38: ICAP Max Clearing Price ($/kW-Month) | F38: =INDEX('Multiple Scenario Output'!$A$31:$AM$36, MATCH(F$12,'Multiple Scenario Output'!$C$31:$C$36, 0), MATCH($A38, 'Multiple Scenario Output'!$A$31:$AM$31, 0)) -> 14.0101 | G38: =INDEX('Multiple Scenario Output'!$A$31:$AM$36, MATCH(G$12,'Multiple Scenario Output'!$C$31:$C$36, 0), MATCH($A38, 'Multiple Scenario Output'!$A$31:$AM$31, 0)) -> 18.9374 | H38: =INDEX('Multiple Scenario Output'!$A$31:$AM$36, MATCH(H$12,'Multiple Scenario Output'!$C$31:$C$36, 0), MATCH($A38, 'Multiple Scenario Output'!$A$31:$AM$31, 0)) -> 26.2475 | I38: =INDEX('Multiple Scenario Output'!$A$31:$AM$36, MATCH(I$12,'Multiple Scenario Output'!$C$31:$C$36, 0), MATCH($A38, 'Multiple Scenario Output'!$A$31:$AM$31, 0)) -> 21.2694
A39: Zero Crossing Point (margin over 100%) | D39: Demand Curve Length | F39: =INDEX('Multiple Scenario Output'!$A$31:$AM$36, MATCH(F$12,'Multiple Scenario Output'!$C$31:$C$36, 0), MATCH($A39, 'Multiple Scenario Output'!$A$31:$AM$31, 0)) -> 0.12 | G39: =INDEX('Multiple Scenario Output'!$A$31:$AM$36, MATCH(G$12,'Multiple Scenario Output'!$C$31:$C$36, 0), MATCH($A39, 'Multiple Scenario Output'!$A$31:$AM$31, 0)) -> 0.15 | H39: =INDEX('Multiple Scenario Output'!$A$31:$AM$36, MATCH(H$12,'Multiple Scenario Output'!$C$31:$C$36, 0), MATCH($A39, 'Multiple Scenario Output'!$A$31:$AM$31, 0)) -> 0.18 | I39: =INDEX('Multiple Scenario Output'!$A$31:$AM$36, MATCH(I$12,'Multiple Scenario Output'!$C$31:$C$36, 0), MATCH($A39, 'Multiple Scenario Output'!$A$31:$AM$31, 0)) -> 0.18
D44: Save Historical Values Below
D47: 2021-2022 | L47: 2022-2023
E48: Source | F48: C - Central | G48: G - Hudson Valley (Rockland) | H48: J - New York City | I48: K - Long Island | M48: Source | N48: C - Central | O48: G - Hudson Valley (Rockland) | P48: J - New York City | Q48: K - Long Island
D49: Gross Cost of New Entry ($/kW-Year) | E49: [1] | L49: Gross Cost of New Entry ($/kW-Year) | M49: [1]
D50: Net EAS Revenue ($/kW-Year) | E50: [2] | L50: Net EAS Revenue ($/kW-Year) | M50: [2]
D51: Annual ICAP Reference Value ($/kW-Year) | E51: [3] = [1] - [2] | L51: Annual ICAP Reference Value ($/kW-Year) | M51: [3] = [1] - [2]
D53: ICAP DMNC (MW) | E53: [4] | L53: ICAP DMNC (MW) | M53: [4]
D54: Total Annual Reference Value | E54: [5] = [3] * [4] | L54: Total Annual Reference Value | M54: [5] = [3] * [4]
D55: Level of Excess (%) | E55: [6] | L55: Level of Excess (%) | M55: [6]
D56: Ratio of Summer to Winter DMNCs | E56: [7] | L56: Ratio of Summer to Winter DMNCs | M56: [7]
D57: Summer DMNC (MW) | E57: [8] | L57: Summer DMNC (MW) | M57: [8]
D58: Winter DMNC (MW) | E58: [9] | L58: Winter DMNC (MW) | M58: [9]
D60: Assumed Capacity Prices at Tariff Prescribed Level of Excess Conditions | L60: Assumed Capacity Prices at Tariff Prescribed Level of Excess Conditions
D61: Summer ($/kW-Month) | E61: [10] | L61: Summer ($/kW-Month) | M61: [10]
D62: Winter ($/kW-Month) | E62: [11] | L62: Winter ($/kW-Month) | M62: [11]
D64: Monthly Revenue (Summer) | E64: [12] = [10]*[8] | L64: Monthly Revenue (Summer) | M64: [12] = [10]*[8]
D65: Monthly Revenue (Winter) | E65: [13] = [11]*[9] | L65: Monthly Revenue (Winter) | M65: [13] = [11]*[9]
D67: Seasonal Revenue (Summer) | E67: [14] = 6 * [12] | L67: Seasonal Revenue (Summer) | M67: [14] = 6 * [12]
D68: Seasonal Revenue (Winter) | E68: [15] = 6 * [13] | L68: Seasonal Revenue (Winter) | M68: [15] = 6 * [13]
D69: Total Annual Reference Value | E69: [16] = [14]+[15] | L69: Total Annual Reference Value | M69: [16] = [14]+[15]
D71: Demand Curve Parameters | L71: Demand Curve Parameters
D72: ICAP Monthly Reference Point Price ($/kW-Month) | L72: ICAP Monthly Reference Point Price ($/kW-Month)
D73: ICAP Max Clearing Price ($/kW-Month) | L73: ICAP Max Clearing Price ($/kW-Month)
D74: Demand Curve Length | L74: Demand Curve Length
D76: 2023-2024 | L76: 2024-2025
E77: Source | F77: C - Central | G77: G - Hudson Valley (Rockland) | H77: J - New York City | I77: K - Long Island | M77: Source | N77: C - Central | O77: G - Hudson Valley (Rockland) | P77: J - New York City | Q77: K - Long Island
D78: Gross Cost of New Entry ($/kW-Year) | E78: [1] | L78: Gross Cost of New Entry ($/kW-Year) | M78: [1]
D79: Net EAS Revenue ($/kW-Year) | E79: [2] | L79: Net EAS Revenue ($/kW-Year) | M79: [2]
D80: Annual ICAP Reference Value ($/kW-Year) | E80: [3] = [1] - [2] | L80: Annual ICAP Reference Value ($/kW-Year) | M80: [3] = [1] - [2]
D82: ICAP DMNC (MW) | E82: [4] | L82: ICAP DMNC (MW) | M82: [4]
D83: Total Annual Reference Value | E83: [5] = [3] * [4] | L83: Total Annual Reference Value | M83: [5] = [3] * [4]
D84: Level of Excess (%) | E84: [6] | L84: Level of Excess (%) | M84: [6]
D85: Ratio of Summer to Winter DMNCs | E85: [7] | L85: Ratio of Summer to Winter DMNCs | M85: [7]
D86: Summer DMNC (MW) | E86: [8] | L86: Summer DMNC (MW) | M86: [8]
D87: Winter DMNC (MW) | E87: [9] | L87: Winter DMNC (MW) | M87: [9]
D89: Assumed Capacity Prices at Tariff Prescribed Level of Excess Conditions | L89: Assumed Capacity Prices at Tariff Prescribed Level of Excess Conditions
D90: Summer ($/kW-Month) | E90: [10] | L90: Summer ($/kW-Month) | M90: [10]
D91: Winter ($/kW-Month) | E91: [11] | L91: Winter ($/kW-Month) | M91: [11]
D93: Monthly Revenue (Summer) | E93: [12] = [10]*[8] | L93: Monthly Revenue (Summer) | M93: [12] = [10]*[8]
D94: Monthly Revenue (Winter) | E94: [13] = [11]*[9] | L94: Monthly Revenue (Winter) | M94: [13] = [11]*[9]
D96: Seasonal Revenue (Summer) | E96: [14] = 6 * [12] | L96: Seasonal Revenue (Summer) | M96: [14] = 6 * [12]
D97: Seasonal Revenue (Winter) | E97: [15] = 6 * [13] | L97: Seasonal Revenue (Winter) | M97: [15] = 6 * [13]
D98: Total Annual Reference Value | E98: [16] = [14]+[15] | L98: Total Annual Reference Value | M98: [16] = [14]+[15]
D100: Demand Curve Parameters | L100: Demand Curve Parameters
D101: ICAP Monthly Reference Point Price ($/kW-Month) | L101: ICAP Monthly Reference Point Price ($/kW-Month)
D102: ICAP Max Clearing Price ($/kW-Month) | L102: ICAP Max Clearing Price ($/kW-Month)
D103: Demand Curve Length | L103: Demand Curve Length

Sheet Model-->

Sheet Model
A1: Project: | B1: NYISO ICAP Demand Curve
A2: Date: | B2: 2021-04-12
A3: Worksheet: | B3: Model
A5: Instructions: | B5: Values highlighted in yellow can be toggled to the values on their right, in grey, to view the reference point price for different zones, peaking plant technologies, and fuel assumptions.
A7: Notes: | B7: 1. Technology, Service Life and AFUDC automatically update to match unit type. Tax rates automatically update to match region.
B8: 2. Changing toggle selections on this page will not interfere with or edit the data on the "Multiple Scenario Output" tab.
A12: NYISO ICAP Demand Curve Model
A14: Inputs
A16: Timing
A17: Capability Year | B17: 2021-2022 | C17: 2021-2022 | D17: 2022-2023 | E17: 2023-2024 | F17: 2024-2025
A19: Plant
A20: Region | B20: G - Hudson Valley (Rockland) | C20: C - Central | D20: G - Hudson Valley (Rockland) | E20: J - New York City | F20: K - Long Island
A21: Technology | B21: =IF(Region="C - Central",$D21,$C21) -> 1x0 GE 7HA.02 25ppm | C21: 1x0 GE 7HA.02 25ppm | D21: 1x0 GE 7HA.02 15ppm
A22: Service Life (Years) | B22: 20
A23: Maximum Price (Multiple of Monthly Gross CONE) | B23: 1.5
A24: Fuel and SCR Specification | B24: =IF(Unit="1x0 GE 7HA.02 15ppm",$D24,$C24) -> Dual fuel with SCR | C24: Dual fuel with SCR | D24: Gas only without SCR
A25: CC Plant | B25: =IF(Unit="8000J CC", TRUE, FALSE) -> FALSE | C25: TRUE | D25: FALSE
A26: Capital Costs without AFUDC($/kW) | B26: =IFERROR(INDEX('Capital Costs'!$C$14:$J$70, MATCH("Capital Costs without AFUDC"&Capability_Year, 'Capital Costs'!$C$14:$C$70, 0), MATCH(Region&Unit&Fuel_Type, 'Capital Costs'!$C$14:$J$14, 0)), "-") -> 1055.73896
A27: AFUDC (%) | B27: 0.068
A28: Overnight Capital Costs including AFUDC($/kW) | B28: =B26*(1+B27) -> 1127.52921
A29: Total EPC Capital Costs | B29: =IFERROR(INDEX('Capital Costs'!$C$14:$J$72, MATCH("Total EPC Costs"&Capability_Year, 'Capital Costs'!$C$14:$C$72, 0), MATCH(Region&Unit&Fuel_Type, 'Capital Costs'!$C$14:$J$14, 0)), "-") -> 793.4697963
A30: Fixed O&M + Site Lease ($/kW-Year) | B30: =IFERROR(INDEX('Performance and O&M'!$C$12:$J$33, MATCH("FO&M Costs "&Capability_Year, 'Performance and O&M'!$C$12:$C$33, 0), MATCH(Region&Unit, 'Performance and O&M'!$C$12:$J$12, 0)), "-") -> 9.286421113
A31: DMNC Summer (MW) | B31: =IFERROR(INDEX('Performance and O&M'!$C$12:$J$26, MATCH($A31, 'Performance and O&M'!$C$12:$C$26, 0), MATCH(Region&Unit, 'Performance and O&M'!$C$12:$J$12, 0)), "-") -> 348.2
A32: DMNC Winter (MW) | B32: =IFERROR(INDEX('Performance and O&M'!$C$12:$J$26, MATCH($A32, 'Performance and O&M'!$C$12:$C$26, 0), MATCH(Region&Unit, 'Performance and O&M'!$C$12:$J$12, 0)), "-") -> 369.9
A33: DMNC ICAP (MW) | B33: =IFERROR(INDEX('Performance and O&M'!$C$12:$J$26, MATCH($A33, 'Performance and O&M'!$C$12:$C$26, 0), MATCH(Region&Unit, 'Performance and O&M'!$C$12:$J$12, 0)), "-") -> 347
A34: Winter-to-Summer Ratio | B34: =IFERROR(INDEX('Winter-to-Summer Ratio'!$D$11:$E$27, MATCH(Region&Capability_Year, 'Winter-to-Summer Ratio'!$D$11:$D$27, 0), MATCH("Winter-to-Summer Ratio", 'Winter-to-Summer Ratio'!$D$11:$E$11, 0)), "-") -> 1.059
A35: Escalation Factor (%) | B35: =IFERROR(INDEX(Escalation_Factor_Table,MATCH(Capability_Year,'Escalation Factor'!$C$36:$C$40,0),MATCH(Unit,'Escalation Factor'!$C$36:$E$36,0)),"-") -> 0.02951697322
A37: Finance
A38: Inflation Factor (%) | B38: 0.021
A39: Debt Fraction (%) | B39: 0.55
A40: Debt Rate (%)
A41: Nominal | B41: 0.067
A42: Real | B42: =(Debt_Rate-Inflation_Factor)/(1+Inflation_Factor) -> 0.04505386876
A43: Equity Rate (%)
A44: Nominal | B44: 0.13
A45: Real | B45: =(Equity_Rate-Inflation_Factor)/(1+Inflation_Factor) -> 0.1067580803
A46: Composite Tax Rate (%) | B46: =IF(Region="J - New York City", D46, F46) -> 0.275 | C46: NYC: | D46: 0.3635 | E46: Non-NYC: | F46: 0.275
A47: ATWACC Nominal (%) | B47: =(1-Debt_Fraction)*Equity_Rate+Debt_Fraction*Debt_Rate*(1-Effective_Tax_Rate) -> 0.08521625
A48: ATWACC Real (%) | B48: =(ATWACC-Inflation_Factor)/(1+Inflation_Factor) -> 0.06289544564 | C48: Discount rate
A50: Fixed Property Tax Rate (%) | B50: =IF(Region="J - New York City", D50, F50) -> 0.005 | C50: NYC: | D50: 0.0474165 | E50: Non-NYC: | F50: 0.005
A51: Insurance Rate (%) | B51: 0.006
A53: Levelized Fixed Charge
A54: Property Tax Abatement (NYC) | B54: =IF(Region="J - New York City",TRUE,FALSE) -> FALSE
A56: Levelized Fixed Charge (%) | B56: =IFERROR('Levelized Factor'!C53, "-") -> 0.1113772541
A57: Levelized Fixed Charge ($/kW-Year) | B57: =IFERROR(Levelized_Charge*Capital_Costs, "-") -> 125.5811073
A59: ICAP Demand Curve
A60: Zero Crossing Point (Margin Over 100%) | B60: =IF(Region=C60,D60, IF(Region=E60, F60, IF(Region=G60,H60, IF(Region=I60, J60, IF(Region=K60, N60, Q60))))) -> 0.15 | C60: F - Capital | D60: 0.12 | E60: C - Central | F60: 0.12 | G60: J - New York City | H60: 0.18 | I60: K - Long Island | J60: 0.18 | K60: G - Hudson Valley (Rockland) | N60: 0.15 | O60: G - Hudson Valley (Dutchess) | Q60: 0.15
A61: Capacity at LOE Conditions (%) | B61: =IFERROR(( (Peak_Load*IRM) + DMNC_ICAP ) / (Peak_Load*IRM), "-") -> 1.024565502
A62: Peak Load (2020) | B62: =INDEX('Peak Load and IRM'!$B$8:$E$13, MATCH(IF(OR(LEFT(Region,1)="F", LEFT(Region,1)="C"), "NYCA", LEFT(Region,1)), 'Peak Load and IRM'!$B$8:$B$13, 0), MATCH("Peak Load (2020)", 'Peak Load and IRM'!$B$8:$E$8, 0)) -> 15695
A63: IRM/LCR | B63: =INDEX('Peak Load and IRM'!$B$8:$E$13, MATCH(IF(OR(LEFT(Region,1)="F", LEFT(Region,1)="C"), "NYCA", LEFT(Region,1)), 'Peak Load and IRM'!$B$8:$B$13, 0), MATCH("Installed Reserve Margin / Locational Capacity Requirement", 'Peak Load and IRM'!$B$8:$E$8, 0)) -> 0.9
A64: Net EAS ($/kW-Year) | B64: =Fuel_Type -> Dual fuel with SCR
A65: ="Not escalated ($"&VALUE(LEFT(Capability_Year,4))-2&")" -> Not escalated ($2019) | B65: =IFERROR(IF(CC_Flag=TRUE,INDEX('Net EAS'!$J$13:$O$29, MATCH(Region&Unit&Capability_Year, 'Net EAS'!$J$13:$J$29, 0), MATCH($B$64, 'Net EAS'!$J$13:$O$13, 0))+CC_Adder,INDEX('Net EAS'!$J$13:$O$29, MATCH(Region&Unit&Capability_Year, 'Net EAS'!$J$13:$J$29, 0), MATCH($B$64, 'Net EAS'!$J$13:$O$13, 0))+VSS_Adder),"-") -> 34.34733552
A66: ="Escalated ($"&VALUE(LEFT(Capability_Year,4))&")" -> Escalated ($2021) | B66: =IFERROR(B65*(1+D66), "-") -> 35.15133801 | C66: EAS Inflation rate: | D66: =IFERROR(H66/F66-1, "-") -> 0.02340800174 | E66: ="GDP Deflator ("&VALUE(LEFT(Capability_Year,4))-3&")" -> GDP Deflator (2018) | F66: =INDEX('Escalation Factor'!$C$175:$S$189, MATCH(VALUE(LEFT(Capability_Year,4))-3, 'Escalation Factor'!$C$175:$C$189, 0), MATCH("II", 'Escalation Factor'!$C$175:$S$175, 0)) -> 110.176 | G66: ="GDP Deflator ("&VALUE(LEFT(Capability_Year,4)-1)&")" -> GDP Deflator (2020) | H66: =INDEX('Escalation Factor'!$C$175:$S$189, MATCH(VALUE(LEFT(Capability_Year,4))-1, 'Escalation Factor'!$C$175:$C$189, 0), MATCH("II", 'Escalation Factor'!$C$175:$S$175, 0)) -> 112.755
A67: Calculations and Output
A69: Summary of Cash Flows ($/kW-Year)
A71: Project Year | B71: NPV | C71: 1 | D71: 2 | E71: 3 | F71: 4 | G71: 5 | H71: 6 | I71: 7 | J71: 8 | K71: 9 | L71: 10 | M71: 11 | N71: 12 | O71: 13 | P71: 14 | Q71: 15 | R71: 16 | S71: 17 | T71: 18 | U71: 19 | V71: 20 | W71: 21 | X71: 22 | Y71: 23 | Z71: 24 | AA71: 25 | AB71: 26 | AC71: 27 | AD71: 28 | AE71: 29 | AF71: 30
A73: Discount Rate Adjustment (%) | B73: - | C73: =IF(C71<=Plant_Life, 1/(1+ATWACC_Real)^C71,0) -> 0.94082631 | D73: 0.8851541455 | E73: 0.8327763085 | F73: 0.7834978613 | G73: 0.7371354017 | H73: 0.69351638 | I73: 0.6524784567 | J73: 0.6138688987 | K73: 0.5775440108 | L73: 0.5433686005 | M73: 0.5112154754 | N73: 0.4809649693 | O73: 0.4525044973 | P73: 0.4257281364 | Q73: 0.4005362316 | R73: 0.3768350248 | S73: 0.3545363059 | T73: 0.3335570844 | U73: 0.3138192809 | V73: 0.295249436 | W73: 0 | X73: 0 | Y73: 0 | Z73: 0 | AA73: 0 | AB73: 0 | AC73: 0 | AD73: 0 | AE73: 0 | AF73: 0
A75: Energy and Ancillary Services Revenue | B75: =SUMPRODUCT($C$73:$AF$73, C75:AF75) -> 393.874708 | C75: =IF(C71<=Plant_Life, EAS, 0) -> 35.15133801 | D75: =IF(D71<=Plant_Life, EAS, 0) -> 35.15133801 | E75: 35.15133801 | F75: 35.15133801 | G75: 35.15133801 | H75: 35.15133801 | I75: 35.15133801 | J75: 35.15133801 | K75: 35.15133801 | L75: 35.15133801 | M75: 35.15133801 | N75: 35.15133801 | O75: 35.15133801 | P75: 35.15133801 | Q75: 35.15133801 | R75: 35.15133801 | S75: 35.15133801 | T75: 35.15133801 | U75: 35.15133801 | V75: 35.15133801 | W75: 0 | X75: 0 | Y75: 0 | Z75: 0 | AA75: 0 | AB75: 0 | AC75: 0 | AD75: 0 | AE75: 0 | AF75: 0
A77: Fixed O&M (Excludes Property Tax and Insurance) | B77: =SUMPRODUCT($C$73:$AF$73, C77:AF77) -> 104.0553962 | C77: =IF(C71<=Plant_Life, FixedOM_Site_Lease, 0) -> 9.286421113 | D77: 9.286421113 | E77: 9.286421113 | F77: 9.286421113 | G77: 9.286421113 | H77: 9.286421113 | I77: 9.286421113 | J77: 9.286421113 | K77: 9.286421113 | L77: 9.286421113 | M77: 9.286421113 | N77: 9.286421113 | O77: 9.286421113 | P77: 9.286421113 | Q77: 9.286421113 | R77: 9.286421113 | S77: 9.286421113 | T77: 9.286421113 | U77: 9.286421113 | V77: 9.286421113 | W77: 0 | X77: 0 | Y77: 0 | Z77: 0 | AA77: 0 | AB77: 0 | AC77: 0 | AD77: 0 | AE77: 0 | AF77: 0
A78: Insurance | B78: =IFERROR(SUMPRODUCT($C$73:$AF$73, C78:AF78), "-") -> 53.3455115 | C78: =IFERROR(IF(C71<=Plant_Life, Insurance_Rate*Total_EPC_Capital_Costs, 0), "-") -> 4.760818778 | D78: 4.760818778 | E78: 4.760818778 | F78: 4.760818778 | G78: 4.760818778 | H78: 4.760818778 | I78: 4.760818778 | J78: 4.760818778 | K78: 4.760818778 | L78: 4.760818778 | M78: 4.760818778 | N78: 4.760818778 | O78: 4.760818778 | P78: 4.760818778 | Q78: 4.760818778 | R78: 4.760818778 | S78: 4.760818778 | T78: 4.760818778 | U78: 4.760818778 | V78: 4.760818778 | W78: 0 | X78: 0 | Y78: 0 | Z78: 0 | AA78: 0 | AB78: 0 | AC78: 0 | AD78: 0 | AE78: 0 | AF78: 0
A79: Levelized Fixed Charge | B79: =IFERROR(SUMPRODUCT($C$73:$AF$73, C79:AF79), "-") -> 1407.150474 | C79: =IFERROR(IF(C71<=Plant_Life, Capital_Costs*Levelized_Charge, 0), "-") -> 125.5811073 | D79: =IFERROR(IF(D71<=Plant_Life, Capital_Costs*Levelized_Charge, 0), "-") -> 125.5811073 | E79: 125.5811073 | F79: 125.5811073 | G79: 125.5811073 | H79: 125.5811073 | I79: 125.5811073 | J79: 125.5811073 | K79: 125.5811073 | L79: 125.5811073 | M79: 125.5811073 | N79: 125.5811073 | O79: 125.5811073 | P79: 125.5811073 | Q79: 125.5811073 | R79: 125.5811073 | S79: 125.5811073 | T79: 125.5811073 | U79: 125.5811073 | V79: 125.5811073 | W79: 0 | X79: 0 | Y79: 0 | Z79: 0 | AA79: 0 | AB79: 0 | AC79: 0 | AD79: 0 | AE79: 0 | AF79: 0
A80: Total Costs | B80: =IFERROR(SUMPRODUCT($C$73:$AF$73, C80:AF80), "-") -> 1564.551382 | C80: =SUM(C77:C79) -> 139.6283472 | D80: =SUM(D77:D79) -> 139.6283472 | E80: 139.6283472 | F80: 139.6283472 | G80: 139.6283472 | H80: 139.6283472 | I80: 139.6283472 | J80: 139.6283472 | K80: 139.6283472 | L80: 139.6283472 | M80: 139.6283472 | N80: 139.6283472 | O80: 139.6283472 | P80: 139.6283472 | Q80: 139.6283472 | R80: 139.6283472 | S80: 139.6283472 | T80: 139.6283472 | U80: 139.6283472 | V80: 139.6283472 | W80: 0 | X80: 0 | Y80: 0 | Z80: 0 | AA80: 0 | AB80: 0 | AC80: 0 | AD80: 0 | AE80: 0 | AF80: 0
A82: Annual Reference Value | B82: =IFERROR(SUMPRODUCT($C$73:$AF$73, C82:AF82), "-") -> 1170.676674 | C82: =IFERROR(C80-C75, "-") -> 104.4770091 | D82: =IFERROR(D80-D75, "-") -> 104.4770091 | E82: 104.4770091 | F82: 104.4770091 | G82: 104.4770091 | H82: 104.4770091 | I82: 104.4770091 | J82: 104.4770091 | K82: 104.4770091 | L82: 104.4770091 | M82: 104.4770091 | N82: 104.4770091 | O82: 104.4770091 | P82: 104.4770091 | Q82: 104.4770091 | R82: 104.4770091 | S82: 104.4770091 | T82: 104.4770091 | U82: 104.4770091 | V82: 104.4770091 | W82: 0 | X82: 0 | Y82: 0 | Z82: 0 | AA82: 0 | AB82: 0 | AC82: 0 | AD82: 0 | AE82: 0 | AF82: 0
A84: Annual Reference Value ($/kW - Year) | B84: =-PMT(ATWACC_Real,Plant_Life,B82) -> 104.4770091
A85: Reference Point Price
A86: Monthly Reference Point Price ($/kW-Month) | B86: =IFERROR((B84*DMNC_ICAP)/(6*( DMNC_Summer*(1 - (Capacity_at_LOE-1)/ZCP) + DMNC_Winter*(1 - ((WSR-1+Capacity_at_LOE-1) / ZCP ) ))), "-") -> 13.27959811
A88: Other Outputs
A89: Gross CONE ($/kW-Year) | B89: =IFERROR(B66+B84, "-") -> 139.6283472
A90: ICAP Demand Curve Slope | B90: =IFERROR((B86-0)/(1-ZCP-1), "-") -> -88.53065404
A91: Level of Excess Clearing Price (Summer, $/kW-Year) | B91: =IFERROR(B90*(Capacity_at_LOE-1)+B86, "-") -> 11.10479814
A92: Level of Excess Clearing Price (Winter, $/kW-Year) | B92: =IFERROR(B86*(1-(Capacity_at_LOE-1+WSR-1)/ZCP), "-") -> 5.881489549
A93: Maximum Clearing Price Specification | B93: NYISO Staff Recommendation
A94: Maximum Clearing Price ($/kW-Month) | B94: =Maximum_Price_Multiple*WSR*Capacity_at_LOE*(Gross_CONE/12) -> 18.93735406

Sheet Multiple Scenario Output
A1: Project: | B1: NYISO ICAP Demand Curve
A2: Date: | B2: 2021-04-12
A3: Worksheet: | B3: Multiple Scenario Output
A5: Instructions: | B5: After updating the escalation factor, winter-summer ratios, and net EAS and after saving the previous year's demand curve results, update this sheet by completing the following steps:
B6: In rows 33 - 36, update "Capability Year" to the current year (e.g. 2021-2022).
B7: Click the "Perform Runs" button.
B8: The values in the blue and purple sections should update here and flow through to the "Demand Curve Results" tab automatically.
A16: Inputs (Current Parameters from "Model")
A19: =COLUMN() -> 1 | B19: =COLUMN() -> 2 | C19: =COLUMN() -> 3 | D19: =COLUMN() -> 4 | E19: =COLUMN() -> 5 | F19: =COLUMN() -> 6 | G19: =COLUMN() -> 7 | H19: =COLUMN() -> 8 | I19: =COLUMN() -> 9 | J19: =COLUMN() -> 10 | K19: =COLUMN() -> 11 | L19: =COLUMN() -> 12 | N19: =COLUMN() -> 14 | O19: =COLUMN() -> 15 | P19: =COLUMN() -> 16 | Q19: =COLUMN() -> 17 | R19: =COLUMN() -> 18 | S19: =COLUMN() -> 19 | T19: =COLUMN() -> 20 | U19: =COLUMN() -> 21 | V19: =COLUMN() -> 22 | W19: =COLUMN() -> 23 | X19: =COLUMN() -> 24 | Y19: =COLUMN() -> 25 | Z19: =COLUMN() -> 26 | AA19: =COLUMN() -> 27 | AB19: =COLUMN() -> 28 | AC19: =COLUMN() -> 29 | AD19: =COLUMN() -> 30 | AE19: =COLUMN() -> 31 | AF19: =COLUMN() -> 32 | AG19: =COLUMN() -> 33 | AI19: =COLUMN() -> 35 | AJ19: =COLUMN() -> 36 | AK19: =COLUMN() -> 37 | AL19: =COLUMN() -> 38 | AM19: =COLUMN() -> 39
B20: Adjustable Inputs | O20: Linked Inputs | AI20: Results
A21: Value: | B21: Capability Year | C21: Region | D21: Unit | E21: Equity Rate (Nominal) | F21: Debt Rate (Nominal) | G21: Debt Fraction | H21: Service life (Years) | I21: NYC Property Tax Abatement? | J21: Insurance Rate | K21: AFUDC Percent | L21: Fuel Type | M21: Maximum Price Specification | O21: Overnight Capital Costs ($/kW) | P21: DMNC Summer (MW) | Q21: DMNC Winter (MW) | R21: DMNC ICAP (MW) | S21: Winter-Summer Ratio | T21: Escalation Factor (%) | U21: ATWACC (Real, %) | V21: Levelized Fixed Charge (%) | W21: Levelized Fixed Charge ($/kW-Year) | X21: Net EAS ($/kW-Year) | Y21: Zero Crossing Point (Margin Over 100%) | Z21: Fixed Property Tax Rate (%) | AA21: Fixed O&M + Site Lease ($/kW-Year) | AB21: Peak Load | AC21: IRM | AD21: Capacity at LOE Conditions | AE21: CC Plant | AF21: Gross CONE ($/kW-Year) | AG21: Insurance ($/kW-Year) | AI21: Annual Reference Value ($/kW-Year) | AJ21: Monthly Reference Point Price ($/kW-Month) | AK21: Maximum Clearing Price ($/kW-Month) | AL21: Level of Excess Clearing Price (Summer) | AM21: Level of Excess Clearing Price (Winter)
A22: Named Range: | B22: Capability_Year | C22: Region | D22: Unit | E22: Equity_Rate | F22: Debt_Rate | G22: Debt_Fraction | H22: Plant_life | I22: PropTax_Abate | J22: Insurance_Rate | K22: AFUDC_Pct | L22: Fuel_Type | M22: Maximum_Price_Type | O22: Capital_Costs | P22: DMNC_Summer | Q22: DMNC_Winter | R22: DMNC_ICAP | S22: WSR | T22: Escalation_Factor | U22: ATWACC_Real | V22: Levelized_Charge | X22: EAS | Y22: ZCP | Z22: Property_Tax_Rate | AA22: FixedOM_Site_Lease | AB22: Peak_Load | AC22: IRM | AD22: Capacity_at_LOE | AE22: CC_Plant
A24: Value: | B24: =Capability_Year -> 2021-2022 | C24: =Region -> G - Hudson Valley (Rockland) | D24: =Unit -> 1x0 GE 7HA.02 25ppm | E24: =Equity_Rate -> 0.13 | F24: =Debt_Rate -> 0.067 | G24: =Debt_Fraction -> 0.55 | H24: =Plant_Life -> 20 | I24: =PropTax_Abate -> FALSE | J24: =Insurance_Rate -> 0.006 | K24: =AFUDC_Pct -> 0.068 | L24: =Fuel_Type -> Dual fuel with SCR | M24: =Maximum_Price_Type -> NYISO Staff Recommendation | O24: =Capital_Costs -> 1127.52921 | P24: =DMNC_Summer -> 348.2 | Q24: =DMNC_Winter -> 369.9 | R24: =DMNC_ICAP -> 347 | S24: =WSR -> 1.059 | T24: =Escalation_Factor -> 0.02951697322 | U24: =ATWACC_Real -> 0.06289544564 | V24: =Levelized_Charge -> 0.1113772541 | W24: =Model!B57 -> 125.5811073 | X24: =EAS -> 35.15133801 | Y24: =ZCP -> 0.15 | Z24: =Property_Tax_Rate -> 0.005 | AA24: =FixedOM_Site_Lease -> 9.286421113 | AB24: =Peak_Load -> 15695 | AC24: =IRM -> 0.9 | AD24: =Capacity_at_LOE -> 1.024565502 | AE24: =CC_Flag -> FALSE | AF24: =Gross_CONE -> 139.6283472 | AG24: =Model!C78 -> 4.760818778 | AI24: =Annual_Reference_Value -> 104.4770091 | AJ24: =Model!B86 -> 13.27959811 | AK24: =Model!B94 -> 18.93735406 | AL24: =Model!B91 -> 11.10479814 | AM24: =Model!B92 -> 5.881489549
A28: Output from Multiple Scenarios
A31: Scenario | B31: Capability Year | C31: Region | D31: Unit | E31: Equity Rate (Nominal) | F31: Debt Rate (Nominal) | G31: Debt Fraction | H31: Service life (Years) | I31: Property Tax Abatement? | J31: Insurance Rate | K31: AFUDC Percent | L31: Fuel Type | M31: Maximum Price Specification | O31: Overnight Capital Costs ($/kW) | P31: DMNC Summer (MW) | Q31: DMNC Winter (MW) | R31: DMNC ICAP (MW) | S31: Winter-Summer Ratio | T31: Escalation Factor (%) | U31: ATWACC (Real, %) | V31: Levelized Fixed Charge (%) | W31: Levelized Fixed Charge ($/kW-Year) | X31: Net EAS ($/kW-Year) | Y31: Zero Crossing Point (Margin Over 100%) | Z31: Fixed Property Tax Rate (%) | AA31: Fixed O&M + Site Lease ($/kW-Year) | AB31: Peak Load | AC31: IRM | AD31: Capacity at LOE Conditions | AE31: CC Plant | AF31: Gross CONE ($/kW-Year) | AG31: Insurance ($/kW-Year) | AI31: Annual Reference Value ($/kW-Year) | AJ31: Monthly Reference Point Price ($/kW-Month) | AK31: Maximum Clearing Price ($/kW-Month) | AL31: Level of Excess Clearing Price (Summer) | AM31: Level of Excess Clearing Price (Winter)
A32: Demand Curve
A33: =C33&" "&D33&" "&E33&F33&G33&H33&L33&K33 -> J - New York City 1x0 GE 7HA.02 25ppm 0.130.0670.5520Dual fuel with SCR0.068 | B33: 2021-2022 | C33: J - New York City | D33: 1x0 GE 7HA.02 25ppm | E33: 0.13 | F33: 0.067 | G33: 0.55 | H33: 20 | I33: TRUE | J33: 0.006 | K33: 0.068 | L33: Dual fuel with SCR | M33: NYISO Staff Recommendation | O33: 1387.2579 | P33: 348.5 | Q33: 374.1 | R33: 348.8 | S33: 1.076 | T33: 0.02951697322 | U33: 0.05970129775 | V33: 0.1183390605 | W33: 164.1668 | X33: 33.4167 | Y33: 0.18 | Z33: 0.0474165 | AA33: 19.0083 | AB33: 11477 | AC33: 0.866 | AD33: 1.035093784 | AE33: FALSE | AF33: 188.5321 | AG33: 5.357 | AI33: 155.1154 | AJ33: 21.2792 | AK33: 26.2475 | AL33: 17.1305 | AM33: 8.1459
A34: K - Long Island 1x0 GE 7HA.02 25ppm 0.130.0670.5520Dual fuel with SCR0.068 | B34: 2021-2022 | C34: K - Long Island | D34: 1x0 GE 7HA.02 25ppm | E34: 0.13 | F34: 0.067 | G34: 0.55 | H34: 20 | I34: FALSE | J34: 0.006 | K34: 0.068 | L34: Dual fuel with SCR | M34: NYISO Staff Recommendation | O34: 1200.0364 | P34: 351.1 | Q34: 373 | R34: 348.8 | S34: 1.073 | T34: 0.02951697322 | U34: 0.06289544564 | V34: 0.1113772541 | W34: 133.6568 | X34: 54.1461 | Y34: 0.18 | Z34: 0.005 | AA34: 10.0059 | AB34: 5227 | AC34: 1.034 | AD34: 1.064536207 | AE34: FALSE | AF34: 148.9654 | AG34: 5.3028 | AI34: 94.8193 | AJ34: 17.5988 | AK34: 21.2694 | AL34: 11.289 | AM34: 4.1517
A35: =C35&" "&D35&" "&E35&F35&G35&H35&L35&K35 -> C - Central 1x0 GE 7HA.02 15ppm 0.130.0670.5520Gas only without SCR0.068 | B35: 2021-2022 | C35: C - Central | D35: 1x0 GE 7HA.02 15ppm | E35: 0.13 | F35: 0.067 | G35: 0.55 | H35: 20 | I35: FALSE | J35: 0.006 | K35: 0.068 | L35: Gas only without SCR | M35: NYISO Staff Recommendation | O35: 853.2627 | P35: 329.3 | Q35: 344.7 | R35: 326.7 | S35: 1.038 | T35: 0.03059523415 | U35: 0.06289544564 | V35: 0.1113772541 | W35: 95.0341 | X35: 32.916 | Y35: 0.12 | Z35: 0.005 | AA35: 8.612 | AB35: 32296 | AC35: 1.189 | AD35: 1.008507825 | AE35: FALSE | AF35: 107.0668 | AG35: 3.4207 | AI35: 74.1507 | AJ35: 7.8086 | AK35: 14.0101 | AL35: 7.255 | AM35: 4.7823
A36: G - Hudson Valley (Rockland) 1x0 GE 7HA.02 25ppm 0.130.0670.5520Dual fuel with SCR0.068 | B36: 2021-2022 | C36: G - Hudson Valley (Rockland) | D36: 1x0 GE 7HA.02 25ppm | E36: 0.13 | F36: 0.067 | G36: 0.55 | H36: 20 | I36: FALSE | J36: 0.006 | K36: 0.068 | L36: Dual fuel with SCR | M36: NYISO Staff Recommendation | O36: 1127.5292 | P36: 348.2 | Q36: 369.9 | R36: 347 | S36: 1.059 | T36: 0.02951697322 | U36: 0.06289544564 | V36: 0.1113772541 | W36: 125.5811 | X36: 35.1513 | Y36: 0.15 | Z36: 0.005 | AA36: 9.2864 | AB36: 15695 | AC36: 0.9 | AD36: 1.024565502 | AE36: FALSE | AF36: 139.6283 | AG36: 4.7608 | AI36: 104.477 | AJ36: 13.2796 | AK36: 18.9374 | AL36: 11.1048 | AM36: 5.8815

Sheet Data Updated Annually-->

Sheet Escalation Factor
C1: Project: | D1: NYISO ICAP Demand Curve
C2: Date: | D2: 2021-04-12
C3: Worksheet: | D3: Escalation Factor
C5: Instructions: | D5: To update the escalation factor for each annual update, access updated data through the source links provided.
D6: If the source is the BLS, ensure that the Series ID provided on this worksheet matches the Series ID of the source of the index.
D7: If the source is the BEA (for the GDP Deflator), ensure that the table and line number match the information provided in this worksheet.
D8: Enter all currently available data from the index in the yellow cells.
C11: Calculation of Escalation Factor
C14: Escalation Factor for Currently Selected Zone, Technology, and Capability Year
C15: Zone: | D15: =Region -> G - Hudson Valley (Rockland)
C16: Technology: | D16: =Unit -> 1x0 GE 7HA.02 25ppm
C17: Capability Year: | D17: =Capability_Year -> 2021-2022 | I17: Linked to model. Values will update based on selected capability year.
A18: Base year: | E18: Construction Labor Cost | F18: Materials Cost | G18: Gas and Steam Turbine Cost | H18: GDP Deflator
A19: =IF(Capability_Year="2021-2022",2018,2020) -> 2018 | C19: Base Year | D19: [A] | E19: =INDEX($C$115:$S$130, MATCH(A19-1, $C$115:$C$130, 0), MATCH("Construction Labor Cost", $C$115:$S$115, 0)) -> 101108 | F19: =INDEX($C$84:$S$98, MATCH(A19, $C$84:$C$98, 0), MATCH("Materials Index", $C$84:$S$84, 0)) -> 249.8333333 | G19: =INDEX($C$145:$S$159, MATCH($A$19, $C$145:$C$159, 0), MATCH("Turbine Index", $C$145:$S$145, 0)) -> 228.0333333 | H19: =INDEX($C$175:$S$189, MATCH(A19, $C$175:$C$189, 0), MATCH("GDP Deflator", $C$175:$S$175, 0)) -> 111.424
A20: Lookup year: | C20: Escalation Year | D20: [B] | E20: =INDEX($C$115:$S$130, MATCH(A21-1, $C$115:$C$130, 0), MATCH("Construction Labor Cost", $C$115:$S$115, 0)) -> 107893 | F20: =INDEX($C$84:$S$98, MATCH(A21, $C$84:$C$98, 0), MATCH("Materials Index", $C$84:$S$84, 0)) -> 253.4 | G20: =INDEX($C$145:$S$159, MATCH($A$21, $C$145:$C$159, 0), MATCH("Turbine Index", $C$145:$S$145, 0)) -> 238.7666667 | H20: =INDEX($C$175:$S$189, MATCH(A21, $C$175:$C$189, 0), MATCH("GDP Deflator", $C$175:$S$175, 0)) -> 112.755
A21: =VALUE(LEFT(Capability_Year,4))-1 -> 2020 | C21: Growth Rate | D21: [B]/[A]-1 | E21: =IF(Capability_Year="2021-2022",((E20/E19)^(5/8))-1,(E20/E19)-1) -> 0.04142942258 | F21: =F20/F19-1 -> 0.01427618412 | G21: 0.04706914194 | H21: 0.01194536186 | I21: Note: In the 2021-2022 capability year the Construction Labor Cost growth rate is calculated as ([B]/[A]^5/8)-1 to account for 5 quarters of growth.
C22: Weights (By Technology) | E22: =INDEX($C$62:$G$65, MATCH(Unit, $C$62:$C$65, 0), MATCH(E$18, $C$62:$G$62, 0)) -> 0.2725645392 | F22: =INDEX($C$62:$G$65, MATCH(Unit, $C$62:$C$65, 0), MATCH(F$18, $C$62:$G$62, 0)) -> 0.2313080155 | G22: =INDEX($C$62:$G$65, MATCH(Unit, $C$62:$C$65, 0), MATCH(G$18, $C$62:$G$62, 0)) -> 0.2561274453 | H22: =INDEX($C$62:$G$65, MATCH(Unit, $C$62:$C$65, 0), MATCH(H$18, $C$62:$G$62, 0)) -> 0.24
C24: Escalation Factor: | E24: =TEXT(E22,"0%")&"*"&TEXT(E21,"0.00%")&" + "&TEXT(F22,"0%")& "*"&TEXT(F21,"0.00%")&" + "&TEXT(G22,"0%")&"*"&TEXT(G21,"0.00%")&" + "&TEXT(H22,"0%")&"*"&TEXT(H21,"0.00%")&" =" -> 27%*4.14% + 23%*1.43% + 26%*4.71% + 24%*1.19% =
E25: =IFERROR(E21*E22+F21*F22+G21*G22+H21*H22, "-") -> 0.02951697322
A27: =A21-1 -> 2019 | C27: ="Previous Year (Q2 "&A27&")" -> Previous Year (Q2 2019) | D27: =INDEX($C$175:$E$189, MATCH(A27, $C$175:$C$189, 0), MATCH("II", $C$175:$E$175, 0)) -> 112.141
C28: ="Current Year (Q2 "&A21&")" -> Current Year (Q2 2020) | D28: =INDEX($C$175:$E$189, MATCH(A21, $C$175:$C$189, 0), MATCH("II", $C$175:$E$175, 0)) -> 112.755
C29: Annual GDP Deflator Growth Rate | D29: =(D28/D27)-1 -> 0.005475249909 | E29: Note: Annual GDP Deflator Growth Rate provides the growth of the GDP Deflator from the 2nd quarter of the previous year to the current year of data available at the time References Prices are released for each capability year.
C33: Escalation Factors by Year and Technology
C36: Capability Year | D36: 1x0 GE 7HA.02 25ppm | E36: 1x0 GE 7HA.02 15ppm
C37: 2021-2022 | D37: =IFERROR((($D51/$D$49)^(5/8)-1)*$D$64+($E51/$E$49-1)*$E$64+($F51/$F$49-1)*$F$64+(($G51/$G$49)-1)*$G$64, "-") -> 0.02951697322 | E37: =IFERROR((($D51/$D$49)^(5/8)-1)*$D$65+($E51/$E$49-1)*$E$65+($F51/$F$49-1)*$F$65+(($G51/$G$49)-1)*$G$65, "-") -> 0.03059523415 | F37: Note: The model uses the five most recently released quarters of index data to calculate growth for the 2021-2022 capability year escalation factors.
C38: 2022-2023 | D38: =IFERROR(($D52/$D$51-1)*$D$64+($E52/$E$51-1)*$E$64+($F52/$F$51-1)*$F$64+(($G52/$G$51)-1)*$G$64, "-") -> - | E38: =IFERROR(($D52/$D$51-1)*$D$65+($E52/$E$51-1)*$E$65+($F52/$F$51-1)*$F$65+(($G52/$G$51)-1)*$G$65, "-") -> -
C39: 2023-2024 | D39: =IFERROR(($D53/$D$51-1)*$D$64+($E53/$E$51-1)*$E$64+($F53/$F$51-1)*$F$64+(($G53/$G$51)-1)*$G$64, "-") -> - | E39: =IFERROR(($D53/$D$51-1)*$D$65+($E53/$E$51-1)*$E$65+($F53/$F$51-1)*$F$65+(($G53/$G$51)-1)*$G$65, "-") -> -
C40: 2024-2025 | D40: =IFERROR(($D54/$D$51-1)*$D$64+($E54/$E$51-1)*$E$64+($F54/$F$51-1)*$F$64+(($G54/$G$51)-1)*$G$64, "-") -> - | E40: =IFERROR(($D54/$D$51-1)*$D$65+($E54/$E$51-1)*$E$65+($F54/$F$51-1)*$F$65+(($G54/$G$51)-1)*$G$65, "-") -> -
C41: Note: Years with missing data or missing escalation factors will automatically update when indices below are updated with new data.
C45: Indices Over Time
A48: Lookup | C48: Capability Year | D48: Construction Labor Cost | E48: Materials Cost | F48: Gas and Steam Turbine Cost | G48: GDP Deflator
A49: 2018 | C49: 2019-2020 | D49: =INDEX($C$115:$S$130, MATCH(A49-1, $C$115:$C$130, 0), MATCH("Construction Labor Cost", $C$115:$S$115, 0)) -> 101108 | E49: =INDEX($C$84:$S$98, MATCH(A49, $C$84:$C$98, 0), MATCH("Materials Index", $C$84:$S$84, 0)) -> 249.8333333 | F49: =INDEX($C$145:$S$161, MATCH(A49, $C$145:$C$161, 0), MATCH("Turbine Index", $C$145:$S$145, 0)) -> 228.0333333 | G49: =INDEX($C$175:$S$190, MATCH(A49, $C$175:$C$190, 0), MATCH("GDP Deflator", $C$175:$S$175, 0)) -> 111.424 | H49: Note: The model uses index values from midway through the 2019-2020 capability year because the 2021-2022 capability year escalates costs for five quarters.
A50: =+A49+1 -> 2019 | C50: 2020-2021 | D50: 105039 | E50: 251.5333333 | F50: =INDEX($C$145:$S$161, MATCH(A50, $C$145:$C$161, 0), MATCH("Turbine Index", $C$145:$S$145, 0)) -> 231.2333333 | G50: =INDEX($C$175:$S$190, MATCH(A50, $C$175:$C$190, 0), MATCH("GDP Deflator", $C$175:$S$175, 0)) -> 112.141
A51: 2020 | C51: 2021-2022 | D51: 107893 | E51: 253.4 | F51: =INDEX($C$145:$S$161, MATCH(A51, $C$145:$C$161, 0), MATCH("Turbine Index", $C$145:$S$145, 0)) -> 238.7666667 | G51: =INDEX($C$175:$S$190, MATCH(A51, $C$175:$C$190, 0), MATCH("GDP Deflator", $C$175:$S$175, 0)) -> 112.755
A52: 2021 | C52: 2022-2023 | D52: - | E52: - | F52: =INDEX($C$145:$S$161, MATCH(A52, $C$145:$C$161, 0), MATCH("Turbine Index", $C$145:$S$145, 0)) -> - | G52: =INDEX($C$175:$S$190, MATCH(A52, $C$175:$C$190, 0), MATCH("GDP Deflator", $C$175:$S$175, 0)) -> -
A53: 2022 | C53: 2023-2024 | D53: - | E53: - | F53: =INDEX($C$145:$S$159, MATCH(A53, $C$145:$C$159, 0), MATCH("Turbine Index", $C$145:$S$145, 0)) -> - | G53: =INDEX($C$175:$S$189, MATCH(A53, $C$175:$C$189, 0), MATCH("GDP Deflator", $C$175:$S$175, 0)) -> -
A54: 2023 | C54: 2024-2025 | D54: - | E54: - | F54: =INDEX($C$145:$S$159, MATCH(A54, $C$145:$C$159, 0), MATCH("Turbine Index", $C$145:$S$145, 0)) -> - | G54: =INDEX($C$175:$S$189, MATCH(A54, $C$175:$C$189, 0), MATCH("GDP Deflator", $C$175:$S$175, 0)) -> -
C55: Note: Years with missing data or missing escalation factors will automatically update when indices below are updated with new data.
C59: Weights by Technology
C62: Technology | D62: Construction Labor Cost | E62: Materials Cost | F62: Gas and Steam Turbine Cost | G62: GDP Deflator
C64: 1x0 GE 7HA.02 25ppm | D64: 0.2725645392 | E64: 0.2313080155 | F64: 0.2561274453 | G64: 0.24
C65: 1x0 GE 7HA.02 15ppm | D65: 0.2353117656 | E65: 0.1941097055 | F65: 0.3205660283 | G65: 0.2500125006
C66: Updated 6/19/2020
C69: Index Inputs
C72: Materials Cost Index
C74: Source: | D74: BLS Producer Price Index - Commodities
C75: Seasonal: | D75: Not Seasonally Adjusted
C76: Series Id: | D76: WPUID612
C77: Group: | D77: (ID6) Intermediate demand by commodity type
C78: Item: | D78: (12) Materials and components for construction
C79: Base Date: | D79: 198200
C80: Years: | D80: 2007 to 2020
C81: Access: | D81: http://data.bls.gov/cgi-bin/dsrv?wp
C82: Date Updated: | D82: 2020-09-02
C84: Year | D84: Jan | E84: Feb | F84: Mar | G84: Apr | H84: May | I84: Jun | J84: Jul | K84: Aug | L84: Sep | M84: Oct | N84: Nov | O84: Dec | S84: Materials Index | U84: Note: Italicized values are preliminary and are subject to revision up to four months after original publication.
C85: 2010 | D85: 202.3 | E85: 203.5 | F85: 204.6 | G85: 206.1 | H85: 207.4 | I85: 206.6 | J85: 206.3 | K85: 206.2 | L85: 205.9 | M85: 205.9 | N85: 206.3 | O85: 207 | S85: =IFERROR(AVERAGE(E85:G85), "-") -> 204.7333333
C86: 2011 | D86: 208.3 | E86: 209.5 | F86: 210.9 | G86: 212.1 | H86: 212.8 | I86: 213.7 | J86: 214.7 | K86: 214.6 | L86: 214.5 | M86: 214.4 | N86: 214.2 | O86: 214.2 | S86: 210.8333333
C87: 2012 | D87: 215.3 | E87: 216.9 | F87: 217.4 | G87: 218.3 | H87: 219.1 | I87: 219.2 | J87: 218.5 | K87: 218.7 | L87: 219.2 | M87: 219.1 | N87: 219.5 | O87: 219.9 | S87: 217.5333333
C88: 2013 | D88: 221.2 | E88: 222.2 | F88: 222.7 | G88: 223.4 | H88: 222.9 | I88: 222.6 | J88: 222.4 | K88: 223 | L88: 222.9 | M88: 222.9 | N88: 223 | O88: 223.1 | S88: 222.7666667
C89: 2014 | D89: 224.8 | E89: 225.8 | F89: 226.6 | G89: 226.9 | H89: 227.4 | I89: 227.4 | J89: 227.7 | K89: 228.2 | L89: 228.5 | M89: 228.6 | N89: 228.5 | O89: 228.4 | S89: 226.4333333
C90: 2015 | D90: 229 | E90: 229.1 | F90: 229.1 | G90: 229.4 | H90: 229.1 | I90: 229 | J90: 228.8 | K90: 228 | L90: 227.5 | M90: 227.7 | N90: 227.6 | O90: 227.2 | S90: 229.2
C91: 2016 | D91: 227.5 | E91: 227.5 | F91: 227.8 | G91: 228.3 | H91: 228.7 | I91: 229.1 | J91: 229.7 | K91: 230.3 | L91: 230 | M91: 229.7 | N91: 229.7 | O91: 230.1 | S91: 227.8666667
C92: 2017 | D92: 231.5 | E92: 232.5 | F92: 233.2 | G92: 234.4 | H92: 234.6 | I92: 234.8 | J92: 234.7 | K92: 235.6 | L92: 236 | M92: 237 | N92: 237.5 | O92: 237.7 | S92: =IFERROR(AVERAGE(E92:G92), "-") -> 233.3666667
C93: 2018 | D93: 239.7 | E93: 241.2 | F93: 244.3 | G93: 245.4 | H93: 248.1 | I93: 249 | J93: 249.4 | K93: 249.2 | L93: 249.6 | M93: 249.6 | N93: 249.1 | O93: 249.7 | S93: =IFERROR(AVERAGE(N93:O93,D94), "-") -> 249.8333333 | T93: Note: The 2018 materials index is calculated with values from Nov. 2018-Jan. 2019 because the 2021-2022 capability year escalates costs for five quarters.
C94: 2019 | D94: 250.7 | E94: 251.5 | F94: 251.2 | G94: 251.9 | H94: 251.7 | I94: 251.2 | J94: 252.3 | K94: 251.3 | L94: 251.1 | M94: 250.8 | N94: 250.8 | O94: 250.8 | S94: 251.5333333
C95: 2020 | D95: 252.1 | E95: 252.8 | F95: 254.3 | G95: 253.1 | H95: 253 | I95: 253.9 | J95: 255.1 | S95: 253.4
C96: 2021 | S96: -
C97: 2022 | S97: =IFERROR(AVERAGE(E97:G97), "-") -> -
C98: 2023 | S98: -
C101: Construction Labor Cost Index
C103: Source: | D103: BLS Quarterly Census of Employment and Wages
C104: Series Id: | D104: ENU360005052371
C105: State: | D105: New York
C106: Area: | D106: New York -- Statewide
C107: Industry: | D107: NAICS 2371 Utility system construction
C108: Owner: | D108: Private
C109: Size | D109: All establishment sizes
C110: Type | D110: Average Annual Pay
C111: Years: | D111: 2007 to 2019
C112: Access: | D112: http://data.bls.gov/cgi-bin/dsrv?en
C113: Date Updated: | D113: 2020-09-02
C115: Year | D115: Annual | S115: Construction Labor Cost | U115: Note: Italicized values are preliminary and are subject to revision.
C116: 2010 | D116: 78635 | S116: =IF(D116="", "-", D116) -> 78635
C117: 2011 | D117: 79665 | S117: 79665
C118: 2012 | D118: 87406 | S118: 87406
C119: 2013 | D119: 88850 | S119: 88850
C120: 2014 | D120: 92531 | S120: 92531
C121: 2015 | D121: 97529 | S121: 97529
C122: 2016 | D122: 102788 | S122: 102788
C123: 2017 | D123: 101108 | S123: 101108
C124: 2018 | D124: 105039 | S124: 105039
C125: 2019 | D125: 107893 | S125: 107893
C126: 2020 | S126: -
C127: 2021 | S127: -
C128: 2022 | S128: -
C129: 2023 | S129: -
C133: Gas and Steam Turbine Index
C135: Source: | D135: BLS Producer Price Index - Commodities
C136: Seasonal: | D136: Not Seasonally Adjusted
C137: Group: | D137: (11) Machinery and Equipment
C138: Item: | D138: (97) Turbines and Turbine Generator Sets
C139: Series ID: | D139: WPU1197
C140: Base Date: | D140: 198706
C141: Years: | D141: 2007 to 2020
C142: Access: | D142: http://data.bls.gov/cgi-bin/dsrv?wp
C143: Date Updated: | D143: 2020-09-02
C145: Year | D145: Jan | E145: Feb | F145: Mar | G145: Apr | H145: May | I145: Jun | J145: Jul | K145: Aug | L145: Sep | M145: Oct | N145: Nov | O145: Dec | S145: Turbine Index | U145: Note: Italicized values are preliminary and are subject to revision up to four months after original publication.
C146: 2010 | D146: 222.9 | E146: 221.2 | F146: 220.2 | G146: 220.5 | H146: 221.6 | I146: 221.5 | J146: 221.8 | K146: 222.1 | L146: 221.9 | M146: 223 | N146: 223 | O146: 223.8 | S146: =IFERROR(AVERAGE(E146:G146), "-") -> 220.6333333
C147: 2011 | D147: 225.5 | E147: 224.9 | F147: 224.5 | G147: 225.7 | H147: 227.7 | I147: 228.8 | J147: 225.9 | K147: 224.2 | L147: 226 | M147: 223.7 | N147: 221.7 | O147: 223.5 | S147: 225.0333333
C148: 2012 | D148: 218.9 | E148: 220 | F148: 222.1 | G148: 222.3 | H148: 224.3 | I148: 225.2 | J148: 225.4 | K148: 224.4 | L148: 222.9 | M148: 225.1 | N148: 226.2 | O148: 225.7 | S148: 221.4666667
C149: 2013 | D149: 225.4 | E149: 225.4 | F149: 226.3 | G149: 226.4 | H149: 227.2 | I149: 226.6 | J149: 228.8 | K149: 227.8 | L149: 229.1 | M149: 229 | N149: 232 | O149: 231.7 | S149: 226.0333333
C150: 2014 | D150: 230.8 | E150: 231.2 | F150: 232.7 | G150: 232.2 | H150: 231.7 | I150: 232.2 | J150: 231.6 | K150: 233.6 | L150: 236.1 | M150: 237.2 | N150: 237.5 | O150: 238.5 | S150: 232.0333333
C151: 2015 | D151: 229.7 | E151: 230.9 | F151: 234.4 | G151: 230.9 | H151: 231.7 | I151: 227.9 | J151: 233.5 | K151: 230 | L151: 232.9 | M151: 232.8 | N151: 232.4 | O151: 233.1 | S151: 232.0666667
C152: 2016 | D152: 231.9 | E152: 232.2 | F152: 232.5 | G152: 231.2 | H152: 231.4 | I152: 233.2 | J152: 233.5 | K152: 232.7 | L152: 232.5 | M152: NA | N152: NA | O152: NA | S152: 231.9666667
C153: 2017 | D153: NA | E153: 224.3 | F153: 223.9 | G153: 223.4 | H153: 223.5 | I153: 227.7 | J153: 225.6 | K153: 225.8 | L153: 225.8 | M153: 224.5 | N153: 217.5 | O153: 211.6 | S153: 223.8666667
C154: 2018 | D154: 210.1 | E154: 215.1 | F154: 221 | G154: 221 | H154: 219.4 | I154: 219.7 | J154: 219.8 | K154: 221.4 | L154: 221 | M154: 224.4 | N154: 225.9 | O154: 228.8 | S154: =IFERROR(AVERAGE(N154:O154,D155), "-") -> 228.0333333 | T154: Note: The 2018 turbine index is calculated with values from Nov. 2018-Jan. 2019 because the 2021-2022 capability year escalates costs for five quarters.
C155: 2019 | D155: 229.4 | E155: 231 | F155: 231.1 | G155: 231.6 | H155: 232.7 | I155: 233.3 | J155: 233.7 | K155: 234.4 | L155: 234.8 | M155: 234.3 | N155: 234.9 | O155: 236.3 | S155: 231.2333333
C156: 2020 | D156: 237.8 | E156: 238.4 | F156: 238.9 | G156: 239 | H156: 239.6 | I156: 241.3 | J156: 242 | S156: 238.7666667
C157: 2021 | S157: -
C158: 2022 | S158: -
C159: 2023 | S159: -
D160: Note: BLS has not released data in months with the value "NA".
C164: Non-EPC Cost Index
C166: Source: | D166: Bureau of Economic Analysis: Gross Domestic Product Implicit Price Deflator, Index 2012 = 100.
C167: Seasonal: | D167: Seasonally Adjusted
C168: Timing: | D168: Quarterly
C169: Table: | D169: 1.1.9
C170: Table Location: | D170: Line 1
C171: Access: | D171: https://apps.bea.gov/iTable/index_nipa.cfm
C172: Date Updated: | D172: 2020-09-02
D174: Quarter
C175: Year | D175: I | E175: II | F175: III | G175: IV | S175: GDP Deflator | U175: Note: Italicized values are preliminary and are subject to revision.
C176: 2010 | D176: 95.499 | E176: 95.943 | F176: 96.222 | G176: 96.763 | S176: =IF(E176="", "-", E176) -> 95.943
C177: 2011 | D177: 97.283 | E177: 97.922 | F177: 98.553 | G177: 98.703 | S177: 97.922
C178: 2012 | D178: 99.32 | E178: 99.713 | F178: 100.225 | G178: 100.737 | S178: 99.713
C179: 2013 | D179: 101.139 | E179: 101.431 | F179: 101.918 | G179: 102.517 | S179: 101.431
C180: 2014 | D180: 102.937 | E180: 103.512 | F180: 103.957 | G180: 104.123 | S180: 103.512
C181: 2015 | D181: 104.031 | E181: 104.596 | F181: 104.926 | G181: 104.937 | S181: 104.596
C182: 2016 | D182: 104.865 | E182: 105.592 | F182: 105.95 | G182: 106.469 | S182: 105.592
C183: 2017 | D183: 107.01 | E183: 107.34 | F183: 107.872 | G183: 108.598 | S183: 107.34
C184: 2018 | D184: 109.237 | E184: 110.176 | F184: 110.614 | G184: 111.14 | S184: =IF(D185="", "-", D185) -> 111.424 | T184: Note: The 2018 GDP deflator is calculated with Q1 2019 data because the 2021-2022 capability year escalates costs for five quarters.
C185: 2019 | D185: 111.424 | E185: 112.141 | F185: 112.531 | G185: 112.95 | S185: =IF(E185="", "-", E185) -> 112.141
C186: 2020 | D186: 113.415 | E186: 112.755 | S186: =IF(E186="", "-",E186) -> 112.755
C187: 2021 | S187: -
C188: 2022 | S188: -
C189: 2023 | S189: -

Sheet Winter-to-Summer Ratio
B1: Project: | C1: NYISO ICAP Demand Curve
B2: Date: | C2: 2021-04-12
B3: Worksheet: | C3: Winter-to-Summer Ratio
B5: Instructions: | C5: Update WSR annually for each zone.
C6: Paste updated WSR values into yellow cells next to the correct zone.
B8: Annual Winter-to-Summmer Ratios
B11: Zone | C11: Capability Year | D11: Lookup | E11: Winter-to-Summer Ratio | F11: Updated 9/02/2020
B12: C - Central | C12: 2021-2022 | D12: =B12&C12 -> C - Central2021-2022 | E12: 1.038
B13: G - Hudson Valley (Rockland) | C13: 2021-2022 | D13: G - Hudson Valley (Rockland)2021-2022 | E13: 1.059
B14: J - New York City | C14: 2021-2022 | D14: J - New York City2021-2022 | E14: 1.076
B15: K - Long Island | C15: 2021-2022 | D15: K - Long Island2021-2022 | E15: 1.073
B16: C - Central | C16: 2022-2023 | D16: C - Central2022-2023
B17: G - Hudson Valley (Rockland) | C17: 2022-2023 | D17: G - Hudson Valley (Rockland)2022-2023
B18: J - New York City | C18: 2022-2023 | D18: J - New York City2022-2023
B19: K - Long Island | C19: 2022-2023 | D19: K - Long Island2022-2023
B20: C - Central | C20: 2023-2024 | D20: C - Central2023-2024
B21: G - Hudson Valley (Rockland) | C21: 2023-2024 | D21: G - Hudson Valley (Rockland)2023-2024
B22: J - New York City | C22: 2023-2024 | D22: J - New York City2023-2024
B23: K - Long Island | C23: 2023-2024 | D23: K - Long Island2023-2024
B24: C - Central | C24: 2024-2025 | D24: C - Central2024-2025
B25: G - Hudson Valley (Rockland) | C25: 2024-2025 | D25: G - Hudson Valley (Rockland)2024-2025
B26: J - New York City | C26: 2024-2025 | D26: J - New York City2024-2025
B27: K - Long Island | C27: 2024-2025 | D27: K - Long Island2024-2025

Sheet Net EAS
K1: Project: | L1: NYISO ICAP Demand Curve
K2: Date: | L2: 2021-04-12
K3: Worksheet: | L3: Net EAS Revenues
K5: Instructions: | L5: Current data reflect the most recent net EAS results from the Net EAS Revenues model.
L6: To update net EAS results for a future capability year, run Net EAS Model and copy and paste in net EAS values that correspond to capability year, fuel type, and load zone.
K9: Annual Net EAS Revenue Estimates
N12: Net EAS Revenues ($/kW-Year)
B13: Unit Type | C13: Lookups | H13: Gas Matrix | I13: zone | K13: Zone | L13: Technology | M13: Capability Year | N13: Dual fuel with SCR | O13: Gas only without SCR
B14: j15 | C14: =$B14&"_"&$I14&"_"&"Yes_No_"&$H14 -> j15_C_Yes_No_1 | D14: =$B14&"_"&$I14&"_"&"Yes_Yes_"&$H14 -> j15_C_Yes_Yes_1 | E14: =$B14&"_"&$I14&"_"&"No_No_"&$H14 -> j15_C_No_No_1 | F14: =$B14&"_"&$I14&"_"&"No_Yes_"&$H14 -> j15_C_No_Yes_1 | G14: =$B14&"_"&$I14 -> j15_C | H14: 1 | I14: C | J14: =K14&L14&M14 -> C - Central1x0 GE 7HA.02 15ppm2021-2022 | K14: C - Central | L14: 1x0 GE 7HA.02 15ppm | M14: 2021-2022 | N14: - | O14: 30.12316591
B15: j25 | C15: =$B15&"_"&$I15&"_"&"Yes_No_"&$H15 -> j25_G2_Yes_No_1 | D15: =$B15&"_"&$I15&"_"&"Yes_Yes_"&$H15 -> j25_G2_Yes_Yes_1 | E15: =$B15&"_"&$I15&"_"&"No_No_"&$H15 -> j25_G2_No_No_1 | F15: =$B15&"_"&$I15&"_"&"No_Yes_"&$H15 -> j25_G2_No_Yes_1 | G15: =$B15&"_"&$I15 -> j25_G2 | H15: 1 | I15: G2 | J15: =K15&L15&M15 -> G - Hudson Valley (Rockland)1x0 GE 7HA.02 25ppm2021-2022 | K15: G - Hudson Valley (Rockland) | L15: 1x0 GE 7HA.02 25ppm | M15: 2021-2022 | N15: 32.30733552 | O15: -
B16: j25 | C16: j25_J_Yes_No_1 | D16: j25_J_Yes_Yes_1 | E16: j25_J_No_No_1 | F16: j25_J_No_Yes_1 | G16: j25_J | H16: 1 | I16: J | J16: =K16&L16&M16 -> J - New York City1x0 GE 7HA.02 25ppm2021-2022 | K16: J - New York City | L16: 1x0 GE 7HA.02 25ppm | M16: 2021-2022 | N16: 30.61233839 | O16: -
B17: j25 | C17: j25_K_Yes_No_1 | D17: j25_K_Yes_Yes_1 | E17: j25_K_No_No_1 | F17: j25_K_No_Yes_1 | G17: j25_K | H17: 1 | I17: K | J17: K - Long Island1x0 GE 7HA.02 25ppm2021-2022 | K17: K - Long Island | L17: 1x0 GE 7HA.02 25ppm | M17: 2021-2022 | N17: 50.86766782 | O17: -
B18: j15 | C18: =$B18&"_"&$I18&"_"&"Yes_No_"&$H18 -> j15_C_Yes_No_1 | D18: =$B18&"_"&$I18&"_"&"Yes_Yes_"&$H18 -> j15_C_Yes_Yes_1 | E18: =$B18&"_"&$I18&"_"&"No_No_"&$H18 -> j15_C_No_No_1 | F18: =$B18&"_"&$I18&"_"&"No_Yes_"&$H18 -> j15_C_No_Yes_1 | G18: =$B18&"_"&$I18 -> j15_C | H18: 1 | I18: C | J18: =K18&L18&M18 -> C - Central1x0 GE 7HA.02 15ppm2022-2023 | K18: C - Central | L18: 1x0 GE 7HA.02 15ppm | M18: 2022-2023
B19: j25 | C19: j25_G2_Yes_No_1 | D19: j25_G2_Yes_Yes_1 | E19: j25_G2_No_No_1 | F19: j25_G2_No_Yes_1 | G19: j25_G2 | H19: 1 | I19: G2 | J19: =K19&L19&M19 -> G - Hudson Valley (Rockland)1x0 GE 7HA.02 25ppm2022-2023 | K19: G - Hudson Valley (Rockland) | L19: 1x0 GE 7HA.02 25ppm | M19: 2022-2023
B20: j25 | C20: j25_J_Yes_No_1 | D20: j25_J_Yes_Yes_1 | E20: j25_J_No_No_1 | F20: j25_J_No_Yes_1 | G20: j25_J | H20: 1 | I20: J | J20: J - New York City1x0 GE 7HA.02 25ppm2022-2023 | K20: J - New York City | L20: 1x0 GE 7HA.02 25ppm | M20: 2022-2023
B21: j25 | C21: =$B21&"_"&$I21&"_"&"Yes_No_"&$H21 -> j25_K_Yes_No_1 | D21: =$B21&"_"&$I21&"_"&"Yes_Yes_"&$H21 -> j25_K_Yes_Yes_1 | E21: =$B21&"_"&$I21&"_"&"No_No_"&$H21 -> j25_K_No_No_1 | F21: =$B21&"_"&$I21&"_"&"No_Yes_"&$H21 -> j25_K_No_Yes_1 | G21: =$B21&"_"&$I21 -> j25_K | H21: 1 | I21: K | J21: K - Long Island1x0 GE 7HA.02 25ppm2022-2023 | K21: K - Long Island | L21: 1x0 GE 7HA.02 25ppm | M21: 2022-2023
B22: j15 | C22: =$B22&"_"&$I22&"_"&"Yes_No_"&$H22 -> j15_C_Yes_No_1 | D22: =$B22&"_"&$I22&"_"&"Yes_Yes_"&$H22 -> j15_C_Yes_Yes_1 | E22: =$B22&"_"&$I22&"_"&"No_No_"&$H22 -> j15_C_No_No_1 | F22: =$B22&"_"&$I22&"_"&"No_Yes_"&$H22 -> j15_C_No_Yes_1 | G22: =$B22&"_"&$I22 -> j15_C | H22: 1 | I22: C | J22: =K22&L22&M22 -> C - Central1x0 GE 7HA.02 15ppm2023-2024 | K22: C - Central | L22: 1x0 GE 7HA.02 15ppm | M22: 2023-2024
B23: j25 | C23: j25_G2_Yes_No_1 | D23: j25_G2_Yes_Yes_1 | E23: j25_G2_No_No_1 | F23: j25_G2_No_Yes_1 | G23: j25_G2 | H23: 1 | I23: G2 | J23: G - Hudson Valley (Rockland)1x0 GE 7HA.02 25ppm2023-2024 | K23: G - Hudson Valley (Rockland) | L23: 1x0 GE 7HA.02 25ppm | M23: 2023-2024
B24: j25 | C24: j25_J_Yes_No_1 | D24: j25_J_Yes_Yes_1 | E24: j25_J_No_No_1 | F24: j25_J_No_Yes_1 | G24: j25_J | H24: 1 | I24: J | J24: J - New York City1x0 GE 7HA.02 25ppm2023-2024 | K24: J - New York City | L24: 1x0 GE 7HA.02 25ppm | M24: 2023-2024
B25: j25 | C25: j25_K_Yes_No_1 | D25: j25_K_Yes_Yes_1 | E25: j25_K_No_No_1 | F25: j25_K_No_Yes_1 | G25: j25_K | H25: 1 | I25: K | J25: K - Long Island1x0 GE 7HA.02 25ppm2023-2024 | K25: K - Long Island | L25: 1x0 GE 7HA.02 25ppm | M25: 2023-2024
B26: j15 | C26: =$B26&"_"&$I26&"_"&"Yes_No_"&$H26 -> j15_C_Yes_No_1 | D26: =$B26&"_"&$I26&"_"&"Yes_Yes_"&$H26 -> j15_C_Yes_Yes_1 | E26: =$B26&"_"&$I26&"_"&"No_No_"&$H26 -> j15_C_No_No_1 | F26: =$B26&"_"&$I26&"_"&"No_Yes_"&$H26 -> j15_C_No_Yes_1 | G26: =$B26&"_"&$I26 -> j15_C | H26: 1 | I26: C | J26: =K26&L26&M26 -> C - Central1x0 GE 7HA.02 15ppm2024-2025 | K26: C - Central | L26: 1x0 GE 7HA.02 15ppm | M26: 2024-2025
B27: j25 | C27: =$B27&"_"&$I27&"_"&"Yes_No_"&$H27 -> j25_G2_Yes_No_1 | D27: =$B27&"_"&$I27&"_"&"Yes_Yes_"&$H27 -> j25_G2_Yes_Yes_1 | E27: =$B27&"_"&$I27&"_"&"No_No_"&$H27 -> j25_G2_No_No_1 | F27: =$B27&"_"&$I27&"_"&"No_Yes_"&$H27 -> j25_G2_No_Yes_1 | G27: =$B27&"_"&$I27 -> j25_G2 | H27: 1 | I27: G2 | J27: =K27&L27&M27 -> G - Hudson Valley (Rockland)1x0 GE 7HA.02 25ppm2024-2025 | K27: G - Hudson Valley (Rockland) | L27: 1x0 GE 7HA.02 25ppm | M27: 2024-2025
B28: j25 | C28: j25_J_Yes_No_1 | D28: j25_J_Yes_Yes_1 | E28: j25_J_No_No_1 | F28: j25_J_No_Yes_1 | G28: j25_J | H28: 1 | I28: J | J28: =K28&L28&M28 -> J - New York City1x0 GE 7HA.02 25ppm2024-2025 | K28: J - New York City | L28: 1x0 GE 7HA.02 25ppm | M28: 2024-2025
B29: j25 | C29: j25_K_Yes_No_1 | D29: j25_K_Yes_Yes_1 | E29: j25_K_No_No_1 | F29: j25_K_No_Yes_1 | G29: j25_K | H29: 1 | I29: K | J29: K - Long Island1x0 GE 7HA.02 25ppm2024-2025 | K29: K - Long Island | L29: 1x0 GE 7HA.02 25ppm | M29: 2024-2025

Sheet Fixed Inputs-->

Sheet Levelized Factor
B1: Project: | C1: NYISO ICAP Demand Curve
B2: Date: | C2: 2021-04-12
B3: Worksheet: | C3: Levelized Factor
B5: Calculation of Levelized Factor
B8: Input
B10: Property Tax Rate | C10: =Property_Tax_Rate -> 0.005 | D10: Linked to "Model"
B11: Total Project Capitalized Cost | C11: =Capital_Costs*DMNC_ICAP*1000 -> 391252635.8
B13: Calendar
B14: Operating Year | C14: 1 | D14: 2 | E14: 3 | F14: 4 | G14: 5 | H14: 6 | I14: 7 | J14: 8 | K14: 9 | L14: 10 | M14: 11 | N14: 12 | O14: 13 | P14: 14 | Q14: 15 | R14: 16 | S14: 17 | T14: 18 | U14: 19 | V14: 20 | W14: 21 | X14: 22 | Y14: 23 | Z14: 24 | AA14: 25 | AB14: 26 | AC14: 27 | AD14: 28 | AE14: 29 | AF14: 30
B15: Discount Rate Adjustment | C15: =IF(C14<=Plant_Life,1/(1+ATWACC_Real)^(C14), 0) -> 0.94082631 | D15: 0.8851541455 | E15: 0.8327763085 | F15: 0.7834978613 | G15: 0.7371354017 | H15: 0.69351638 | I15: 0.6524784567 | J15: 0.6138688987 | K15: 0.5775440108 | L15: 0.5433686005 | M15: 0.5112154754 | N15: 0.4809649693 | O15: 0.4525044973 | P15: 0.4257281364 | Q15: 0.4005362316 | R15: 0.3768350248 | S15: 0.3545363059 | T15: 0.3335570844 | U15: 0.3138192809 | V15: 0.295249436 | W15: 0 | X15: 0 | Y15: 0 | Z15: 0 | AA15: 0 | AB15: 0 | AC15: 0 | AD15: 0 | AE15: 0 | AF15: 0
B17: Parameters and Exemptions
B18: Loan Period Parameter | C18: 1 | D18: 1 | E18: 1 | F18: 1 | G18: 1 | H18: 1 | I18: 1 | J18: 1 | K18: 1 | L18: 1 | M18: 1 | N18: 1 | O18: 1 | P18: 1 | Q18: 1 | R18: 1 | S18: 1 | T18: 1 | U18: 1 | V18: 1 | W18: 1 | X18: 1 | Y18: 1 | Z18: 1 | AA18: 1 | AB18: 1 | AC18: 1 | AD18: 1 | AE18: 1 | AF18: 1
B19: NYC Property Tax Exemption active for 15 years | C19: =IF(AND(Region="J - New York City",PropTax_Abate), 1, 0) -> 0 | D19: 0 | E19: 0 | F19: 0 | G19: 0 | H19: 0 | I19: 0 | J19: 0 | K19: 0 | L19: 0 | M19: 0 | N19: 0 | O19: 0 | P19: 0 | Q19: 0 | R19: 0 | S19: 0 | T19: 0 | U19: 0 | V19: 0 | W19: 0 | X19: 0 | Y19: 0 | Z19: 0 | AA19: 0 | AB19: 0 | AC19: 0 | AD19: 0 | AE19: 0 | AF19: 0
B21: Depreciation
B22: Effective Tax Depreciation | C22: =C23 -> 0.05 | D22: =D23 -> 0.095 | E22: 0.0855 | F22: 0.077 | G22: 0.0693 | H22: 0.0623 | I22: 0.059 | J22: 0.059 | K22: 0.0591 | L22: 0.059 | M22: 0.0591 | N22: 0.059 | O22: 0.0591 | P22: 0.059 | Q22: 0.0591 | R22: 0.0295 | S22: 0 | T22: 0 | U22: 0 | V22: 0 | W22: 0 | X22: 0 | Y22: 0 | Z22: 0 | AA22: 0 | AB22: 0 | AC22: 0 | AD22: 0 | AE22: 0 | AF22: 0
B23: Tax Depreciation (15 year SC) | C23: 0.05 | D23: 0.095 | E23: 0.0855 | F23: 0.077 | G23: 0.0693 | H23: 0.0623 | I23: 0.059 | J23: 0.059 | K23: 0.0591 | L23: 0.059 | M23: 0.0591 | N23: 0.059 | O23: 0.0591 | P23: 0.059 | Q23: 0.0591 | R23: 0.0295 | S23: 0 | T23: 0 | U23: 0 | V23: 0 | W23: 0 | X23: 0 | Y23: 0 | Z23: 0 | AA23: 0 | AB23: 0 | AC23: 0 | AD23: 0 | AE23: 0 | AF23: 0
B26: Financing
B27: Equity | C27: =C11*(1-Debt_Fraction) -> 176063686.1
B28: Target Cash Flow to Equity | C28: =IF(C14<=Plant_Life,PMT(Equity_Rate_Real,Plant_Life,(-1*$C$27),,0),0) -> 21642318.53 | D28: 21642318.53 | E28: 21642318.53 | F28: 21642318.53 | G28: 21642318.53 | H28: 21642318.53 | I28: 21642318.53 | J28: 21642318.53 | K28: 21642318.53 | L28: 21642318.53 | M28: 21642318.53 | N28: 21642318.53 | O28: 21642318.53 | P28: 21642318.53 | Q28: 21642318.53 | R28: 21642318.53 | S28: 21642318.53 | T28: 21642318.53 | U28: 21642318.53 | V28: 21642318.53 | W28: 0 | X28: 0 | Y28: 0 | Z28: 0 | AA28: 0 | AB28: 0 | AC28: 0 | AD28: 0 | AE28: 0 | AF28: 0
B30: Debt Service | C30: =C11*Debt_Fraction -> 215188949.7
B31: Principal | C31: =IF(C14<=Plant_Life,PPMT(Debt_Rate_Real,C14,Plant_Life,-1*$C$30,,0),0) -> 6855524.833 | D31: 7164392.749 | E31: 7487176.36 | F31: 7824502.621 | G31: 8177026.735 | H31: 8545433.425 | I31: 8930438.261 | J31: 9332789.054 | K31: 9753267.307 | L31: 10192689.73 | M31: 10651909.84 | N31: 11131819.59 | O31: 11633351.12 | P31: 12157478.6 | Q31: 12705220.04 | R31: 13277639.36 | S31: 13875848.38 | T31: 14501009.03 | U31: 15154335.59 | V31: 15837097.04 | W31: 0 | X31: 0 | Y31: 0 | Z31: 0 | AA31: 0 | AB31: 0 | AC31: 0 | AD31: 0 | AE31: 0 | AF31: 0
B32: Loan Balance Start of Year | C32: =C30 -> 215188949.7 | D32: =C32-C31 -> 208333424.8 | E32: 201169032.1 | F32: 193681855.7 | G32: 185857353.1 | H32: 177680326.4 | I32: 169134893 | J32: 160204454.7 | K32: 150871665.6 | L32: 141118398.3 | M32: 130925708.6 | N32: 120273798.8 | O32: 109141979.2 | P32: 97508628.05 | Q32: 85351149.45 | R32: 72645929.41 | S32: 59368290.04 | T32: 45492441.66 | U32: 30991432.63 | V32: 15837097.04 | W32: 0 | X32: 0 | Y32: 0 | Z32: 0 | AA32: 0 | AB32: 0 | AC32: 0 | AD32: 0 | AE32: 0 | AF32: 0
B33: Interest | C33: =IF(C14<=Plant_Life,IPMT(Debt_Rate_Real,C18,Plant_Life,-1*C32,,0),0) -> 9695094.696 | D33: 9386226.78 | E33: 9063443.17 | F33: 8726116.909 | G33: 8373592.794 | H33: 8005186.105 | I33: 7620181.269 | J33: 7217830.476 | K33: 6797352.223 | L33: 6357929.797 | M33: 5898709.692 | N33: 5418799.944 | O33: 4917268.405 | P33: 4393140.931 | Q33: 3845399.485 | R33: 3272980.169 | S33: 2674771.148 | T33: 2049610.496 | U33: 1396283.938 | V33: 713522.4914 | W33: 0 | X33: 0 | Y33: 0 | Z33: 0 | AA33: 0 | AB33: 0 | AC33: 0 | AD33: 0 | AE33: 0 | AF33: 0
B35: Yearly Debt Service (Principal + Interest) | C35: =SUM(C31,C33) -> 16550619.53 | D35: 16550619.53 | E35: 16550619.53 | F35: 16550619.53 | G35: 16550619.53 | H35: 16550619.53 | I35: 16550619.53 | J35: 16550619.53 | K35: 16550619.53 | L35: 16550619.53 | M35: 16550619.53 | N35: 16550619.53 | O35: 16550619.53 | P35: 16550619.53 | Q35: 16550619.53 | R35: 16550619.53 | S35: 16550619.53 | T35: 16550619.53 | U35: 16550619.53 | V35: 16550619.53 | W35: 0 | X35: 0 | Y35: 0 | Z35: 0 | AA35: 0 | AB35: 0 | AC35: 0 | AD35: 0 | AE35: 0 | AF35: 0
B37: Capital Related Expenses
B38: Property Taxes | C38: =IF(C19,0,IF(C14<=Plant_Life,$C$10*$C$11,0)) -> 1956263.179 | D38: 1956263.179 | E38: 1956263.179 | F38: 1956263.179 | G38: 1956263.179 | H38: 1956263.179 | I38: 1956263.179 | J38: 1956263.179 | K38: 1956263.179 | L38: 1956263.179 | M38: 1956263.179 | N38: 1956263.179 | O38: 1956263.179 | P38: 1956263.179 | Q38: 1956263.179 | R38: 1956263.179 | S38: 1956263.179 | T38: 1956263.179 | U38: 1956263.179 | V38: 1956263.179 | W38: 0 | X38: 0 | Y38: 0 | Z38: 0 | AA38: 0 | AB38: 0 | AC38: 0 | AD38: 0 | AE38: 0 | AF38: 0
B39: Tax Depreciation | C39: =$C$11*C22 -> 19562631.79 | D39: 37169000.4 | E39: 33452100.36 | F39: 30126452.95 | G39: 27113807.66 | H39: 24375039.21 | I39: 23083905.51 | J39: 23083905.51 | K39: 23123030.77 | L39: 23083905.51 | M39: 23123030.77 | N39: 23083905.51 | O39: 23123030.77 | P39: 23083905.51 | Q39: 23123030.77 | R39: 11541952.76 | S39: 0 | T39: 0 | U39: 0 | V39: 0 | W39: 0 | X39: 0 | Y39: 0 | Z39: 0 | AA39: 0 | AB39: 0 | AC39: 0 | AD39: 0 | AE39: 0 | AF39: 0
B41: Derivation of Carrying Charges
B42: Target Equity IRR | C42: =Equity_Rate_Real -> 0.1067580803
B43: Principal | C43: =C31 -> 6855524.833 | D43: 7164392.749 | E43: 7487176.36 | F43: 7824502.621 | G43: 8177026.735 | H43: 8545433.425 | I43: 8930438.261 | J43: 9332789.054 | K43: 9753267.307 | L43: 10192689.73 | M43: 10651909.84 | N43: 11131819.59 | O43: 11633351.12 | P43: 12157478.6 | Q43: 12705220.04 | R43: 13277639.36 | S43: 13875848.38 | T43: 14501009.03 | U43: 15154335.59 | V43: 15837097.04 | W43: 0 | X43: 0 | Y43: 0 | Z43: 0 | AA43: 0 | AB43: 0 | AC43: 0 | AD43: 0 | AE43: 0 | AF43: 0
B44: Interest | C44: =C33 -> 9695094.696 | D44: 9386226.78 | E44: 9063443.17 | F44: 8726116.909 | G44: 8373592.794 | H44: 8005186.105 | I44: 7620181.269 | J44: 7217830.476 | K44: 6797352.223 | L44: 6357929.797 | M44: 5898709.692 | N44: 5418799.944 | O44: 4917268.405 | P44: 4393140.931 | Q44: 3845399.485 | R44: 3272980.169 | S44: 2674771.148 | T44: 2049610.496 | U44: 1396283.938 | V44: 713522.4914 | W44: 0 | X44: 0 | Y44: 0 | Z44: 0 | AA44: 0 | AB44: 0 | AC44: 0 | AD44: 0 | AE44: 0 | AF44: 0
B45: Target Cash Flow to Equity | C45: =C28 -> 21642318.53 | D45: 21642318.53 | E45: 21642318.53 | F45: 21642318.53 | G45: 21642318.53 | H45: 21642318.53 | I45: 21642318.53 | J45: 21642318.53 | K45: 21642318.53 | L45: 21642318.53 | M45: 21642318.53 | N45: 21642318.53 | O45: 21642318.53 | P45: 21642318.53 | Q45: 21642318.53 | R45: 21642318.53 | S45: 21642318.53 | T45: 21642318.53 | U45: 21642318.53 | V45: 21642318.53 | W45: 0 | X45: 0 | Y45: 0 | Z45: 0 | AA45: 0 | AB45: 0 | AC45: 0 | AD45: 0 | AE45: 0 | AF45: 0
B46: Income Taxes | C46: =(Effective_Tax_Rate/(1-Effective_Tax_Rate))*(C45+C43-C39) -> 3389218.183 | D46: =(Effective_Tax_Rate/(1-Effective_Tax_Rate))*(D45+D43-D39) -> -3171902.77 | E46: -1639608.971 | F46: -250205.1673 | G46: 1026238.402 | H46: 2204822.076 | I46: 2840598.761 | J46: 2993214.579 | K46: 3137865.713 | L46: 3319383.802 | M46: 3478730.121 | N46: 3675605.47 | O46: 3851000.954 | P46: 4064648.544 | Q46: 4257571.924 | R46: 8867519.189 | S46: 13472408.14 | T46: 13709538.04 | U46: 13957351.56 | V46: 14216330.04 | W46: 0 | X46: 0 | Y46: 0 | Z46: 0 | AA46: 0 | AB46: =(Effective_Tax_Rate/(1-Effective_Tax_Rate))*(AB45+AB43-AB39) -> 0 | AC46: =(Effective_Tax_Rate/(1-Effective_Tax_Rate))*(AC45+AC43-AC39) -> 0 | AD46: =(Effective_Tax_Rate/(1-Effective_Tax_Rate))*(AD45+AD43-AD39) -> 0 | AE46: =(Effective_Tax_Rate/(1-Effective_Tax_Rate))*(AE45+AE43-AE39) -> 0 | AF46: =(Effective_Tax_Rate/(1-Effective_Tax_Rate))*(AF45+AF43-AF39) -> 0
B47: Property Taxes | C47: =C38 -> 1956263.179 | D47: =D38 -> 1956263.179 | E47: 1956263.179 | F47: 1956263.179 | G47: 1956263.179 | H47: 1956263.179 | I47: 1956263.179 | J47: 1956263.179 | K47: 1956263.179 | L47: =L38 -> 1956263.179 | M47: 1956263.179 | N47: 1956263.179 | O47: 1956263.179 | P47: 1956263.179 | Q47: 1956263.179 | R47: 1956263.179 | S47: 1956263.179 | T47: 1956263.179 | U47: 1956263.179 | V47: 1956263.179 | W47: 0 | X47: 0 | Y47: 0 | Z47: 0 | AA47: 0 | AB47: 0 | AC47: 0 | AD47: 0 | AE47: 0 | AF47: 0
B49: Total Carrying Charges | C49: =SUM(C43:C47) -> 43538419.42 | D49: =SUM(D43:D47) -> 36977298.47 | E49: =SUM(E43:E47) -> 38509592.27 | F49: 39898996.07 | G49: 41175439.64 | H49: 42354023.31 | I49: 42989800 | J49: 43142415.82 | K49: 43287066.95 | L49: 43468585.04 | M49: 43627931.36 | N49: 43824806.71 | O49: 44000202.19 | P49: 44213849.78 | Q49: 44406773.16 | R49: 49016720.43 | S49: 53621609.38 | T49: 53858739.28 | U49: 54106552.8 | V49: 54365531.28 | W49: 0 | X49: 0 | Y49: 0 | Z49: 0 | AA49: 0 | AB49: =SUM(AB43:AB47) -> 0 | AC49: =SUM(AC43:AC47) -> 0 | AD49: =SUM(AD43:AD47) -> 0 | AE49: =SUM(AE43:AE47) -> 0 | AF49: =SUM(AF43:AF47) -> 0
B51: Cumulative Present Value | C51: =SUMPRODUCT(C49:AF49, C15:AF15) -> 488281214.6
B52: Levelized Carrying Charges (Real) | C52: =-1*PMT(ATWACC_Real,Plant_Life,$C$51,,0) -> 43576644.22
B53: Levelized Carrying Charge Rate (Real) | C53: =C52/C11 -> 0.1113772541

Sheet Peak Load and IRM
C1: Project: | D1: NYISO ICAP Demand Curve
C2: Date: | D2: 2021-04-12
C3: Worksheet: | D3: Peak Load and IRM
C5: Peak Load and IRM
B8: Lookup | C8: Zone | D8: Peak Load (2020) | E8: Installed Reserve Margin / Locational Capacity Requirement
B10: K | C10: K - Long Island | D10: 5227 | E10: 1.034
B11: J | C11: J - New York City | D11: 11477 | E11: 0.866
B12: NYCA | C12: NYCA | D12: 32296 | E12: 1.189
B13: G | C13: G-J | D13: 15695 | E13: 0.9
C17: Sources:
C18: 2020 Gold Book, Tables I-3a, I-4a, and I-5.
C19: 2020 - 2021 Locational Minimum Installed Capacity Requirement Study. NYISO.

Sheet AS Adders
B1: Project: | C1: NYISO ICAP Demand Curve
B2: Date: | C2: 2021-04-12
B3: Worksheet: | C3: AS Adders
B5: AS Adders
B7: Adder Type | C7: Adder ($/kW-Year)
B8: VSS Adder | C8: 2.04

Sheet Performance and O&M
D1: Project: | F1: NYISO ICAP Demand Curve
D2: Date: | F2: 2021-04-12
D3: Worksheet: | F3: Performance and O&M
D5: Performance and O&M Data
F8: 1x0 GE 7HA.02 25ppm | G8: 1x0 GE 7HA.02 25ppm | H8: 1x0 GE 7HA.02 25ppm | J8: 1x0 GE 7HA.02 15ppm
D9: Technology | F9: 1x0 GE 7HA.02 25ppm dual fuel with SCR | J9: 1x0 GE 7HA.02 15ppm dual fuel without SCR
D10: Plant Capacity (MW) | F10: =AVERAGE(F21:H21) -> 348.2 | J10: =AVERAGE(J21:J21) -> 326.7
D12: Lookup | F12: =F13&F8 -> G - Hudson Valley (Rockland)1x0 GE 7HA.02 25ppm | G12: =G13&G8 -> J - New York City1x0 GE 7HA.02 25ppm | H12: K - Long Island1x0 GE 7HA.02 25ppm | J12: =J13&J8 -> C - Central1x0 GE 7HA.02 15ppm
D13: Zone | E13: Units | F13: G - Hudson Valley (Rockland) | G13: J - New York City | H13: K - Long Island | J13: C - Central
D15: Plant Capacities
C17: Capacity- based on average temp (Summer, MW) | D17: Net Plant Capacity - Summer | E17: MW | F17: 357.4 | G17: 358.7 | H17: 359 | J17: 338
C18: Capacity- based on average temp (Winter, MW) | D18: Net Plant Capacity - Winer | E18: MW | F18: 370.2 | G18: 370.2 | H18: 371.1 | J18: 346.1
C19: DMNC Summer (MW) | D19: DMNC Summer | E19: MW | F19: 348.2 | G19: 348.5 | H19: 351.1 | J19: 329.3
C20: DMNC Winter (MW) | D20: DMNC Winter | E20: MW | F20: 369.9 | G20: 374.1 | H20: 373 | J20: 344.7
C21: DMNC ICAP (MW) | D21: DMNC ICAP | E21: MW | F21: 347 | G21: 348.8 | H21: 348.8 | J21: 326.7
D23: Fixed O&M Costs
D25: Fixed O&M and Site Leasing Costs, Excluding Insurance and Property Taxes (2020) | E25: $/kW-Year | F25: 9.020172911 | G25: 18.46330275 | H25: 9.719036697 | J25: 8.356290174
B27: 2021-2022 | C27: ="FO&M Costs "&B27 -> FO&M Costs 2021-2022 | D27: ="Fixed O&M and Site Leasing Costs, Excluding Insurance and Property Taxes ("&B27&")" -> Fixed O&M and Site Leasing Costs, Excluding Insurance and Property Taxes (2021-2022) | E27: $/kW-Year | F27: =IFERROR(F$25*(1+INDEX(Escalation_Factor_Table, MATCH($B27, 'Escalation Factor'!$C$36:$C$40, 0), MATCH(F$8, 'Escalation Factor'!$C$36:$E$36, 0))), "-") -> 9.286421113 | G27: =IFERROR(G$25*(1+INDEX(Escalation_Factor_Table, MATCH($B27, 'Escalation Factor'!$C$36:$C$40, 0), MATCH(G$8, 'Escalation Factor'!$C$36:$E$36, 0))), "-") -> 19.00828357 | H27: =IFERROR(H$25*(1+INDEX(Escalation_Factor_Table, MATCH($B27, 'Escalation Factor'!$C$36:$C$40, 0), MATCH(H$8, 'Escalation Factor'!$C$36:$E$36, 0))), "-") -> 10.00591324 | J27: =IFERROR(J$25*(1+INDEX(Escalation_Factor_Table, MATCH($B27, 'Escalation Factor'!$C$36:$C$40, 0), MATCH(J$8, 'Escalation Factor'!$C$36:$E$36, 0))), "-") -> 8.611952829
B29: 2022-2023 | C29: ="FO&M Costs "&B29 -> FO&M Costs 2022-2023 | D29: ="Fixed O&M and Site Leasing Costs, Excluding Insurance and Property Taxes ("&B29&")" -> Fixed O&M and Site Leasing Costs, Excluding Insurance and Property Taxes (2022-2023) | E29: $/kW-Year | F29: =IFERROR(F$27*(1+INDEX(Escalation_Factor_Table, MATCH($B29, 'Escalation Factor'!$C$36:$C$40, 0), MATCH(F$8, 'Escalation Factor'!$C$36:$E$36, 0))), "-") -> - | G29: =IFERROR(G$27*(1+INDEX(Escalation_Factor_Table, MATCH($B29, 'Escalation Factor'!$C$36:$C$40, 0), MATCH(G$8, 'Escalation Factor'!$C$36:$E$36, 0))), "-") -> - | H29: =IFERROR(H$27*(1+INDEX(Escalation_Factor_Table, MATCH($B29, 'Escalation Factor'!$C$36:$C$40, 0), MATCH(H$8, 'Escalation Factor'!$C$36:$E$36, 0))), "-") -> - | J29: =IFERROR(J$27*(1+INDEX(Escalation_Factor_Table, MATCH($B29, 'Escalation Factor'!$C$36:$C$40, 0), MATCH(J$8, 'Escalation Factor'!$C$36:$E$36, 0))), "-") -> -
B31: 2023-2024 | C31: ="FO&M Costs "&B31 -> FO&M Costs 2023-2024 | D31: ="Fixed O&M and Site Leasing Costs, Excluding Insurance and Property Taxes ("&B31&")" -> Fixed O&M and Site Leasing Costs, Excluding Insurance and Property Taxes (2023-2024) | E31: $/kW-Year | F31: =IFERROR(F$27*(1+INDEX(Escalation_Factor_Table, MATCH($B31, 'Escalation Factor'!$C$36:$C$40, 0), MATCH(F$8, 'Escalation Factor'!$C$36:$E$36, 0))), "-") -> - | G31: =IFERROR(G$27*(1+INDEX(Escalation_Factor_Table, MATCH($B31, 'Escalation Factor'!$C$36:$C$40, 0), MATCH(G$8, 'Escalation Factor'!$C$36:$E$36, 0))), "-") -> - | H31: =IFERROR(H$27*(1+INDEX(Escalation_Factor_Table, MATCH($B31, 'Escalation Factor'!$C$36:$C$40, 0), MATCH(H$8, 'Escalation Factor'!$C$36:$E$36, 0))), "-") -> - | J31: =IFERROR(J$27*(1+INDEX(Escalation_Factor_Table, MATCH($B31, 'Escalation Factor'!$C$36:$C$40, 0), MATCH(J$8, 'Escalation Factor'!$C$36:$E$36, 0))), "-") -> -
B33: 2024-2025 | C33: ="FO&M Costs "&B33 -> FO&M Costs 2024-2025 | D33: ="Fixed O&M and Site Leasing Costs, Excluding Insurance and Property Taxes ("&B33&")" -> Fixed O&M and Site Leasing Costs, Excluding Insurance and Property Taxes (2024-2025) | E33: $/kW-Year | F33: =IFERROR(F$27*(1+INDEX(Escalation_Factor_Table, MATCH($B33, 'Escalation Factor'!$C$36:$C$40, 0), MATCH(F$8, 'Escalation Factor'!$C$36:$E$36, 0))), "-") -> - | G33: =IFERROR(G$27*(1+INDEX(Escalation_Factor_Table, MATCH($B33, 'Escalation Factor'!$C$36:$C$40, 0), MATCH(G$8, 'Escalation Factor'!$C$36:$E$36, 0))), "-") -> - | H33: =IFERROR(H$27*(1+INDEX(Escalation_Factor_Table, MATCH($B33, 'Escalation Factor'!$C$36:$C$40, 0), MATCH(H$8, 'Escalation Factor'!$C$36:$E$36, 0))), "-") -> - | J33: =IFERROR(J$27*(1+INDEX(Escalation_Factor_Table, MATCH($B33, 'Escalation Factor'!$C$36:$C$40, 0), MATCH(J$8, 'Escalation Factor'!$C$36:$E$36, 0))), "-") -> -
D36: Updated 7/20/2020

Sheet Capital Costs
D1: Project: | E1: NYISO ICAP Demand Curve
D2: Date: | E2: 2021-04-12
D3: Worksheet: | E3: Capital Costs
D5: Capital Costs
E8: 1x0 GE 7HA.02 25ppm | F8: 1x0 GE 7HA.02 25ppm | G8: 1x0 GE 7HA.02 25ppm | I8: 1x0 GE 7HA.02 15ppm
E9: Dual fuel with SCR | F9: Dual fuel with SCR | G9: Dual fuel with SCR | I9: Gas only without SCR
D10: Technology | E10: 1x0 GE 7HA.02 25ppm dual fuel with SCR | I10: 1x0 GE 7HA.02 15ppm gas only without SCR
D11: Plant Capacity (MW) average of zone-specific DMNC ICAP | E11: =AVERAGE(E13:G13) -> 348.2 | I11: =AVERAGE(I13:I13) -> 326.7
D13: DMNC ICAP (MW) | E13: =INDEX('Performance and O&M'!$C$12:$J$21, MATCH("DMNC ICAP (MW)", 'Performance and O&M'!$C$12:$C$21, 0), MATCH(E15&E8, 'Performance and O&M'!$C$12:$J$12, 0)) -> 347 | F13: =INDEX('Performance and O&M'!$C$12:$J$21, MATCH("DMNC ICAP (MW)", 'Performance and O&M'!$C$12:$C$21, 0), MATCH(F15&F8, 'Performance and O&M'!$C$12:$J$12, 0)) -> 348.8 | G13: =INDEX('Performance and O&M'!$C$12:$J$21, MATCH("DMNC ICAP (MW)", 'Performance and O&M'!$C$12:$C$21, 0), MATCH(G15&G8, 'Performance and O&M'!$C$12:$J$12, 0)) -> 348.8 | I13: =INDEX('Performance and O&M'!$C$12:$J$21, MATCH("DMNC ICAP (MW)", 'Performance and O&M'!$C$12:$C$21, 0), MATCH(I15&I8, 'Performance and O&M'!$C$12:$J$12, 0)) -> 326.7
D14: Lookup | E14: =E15&E8&E9 -> G - Hudson Valley (Rockland)1x0 GE 7HA.02 25ppmDual fuel with SCR | F14: =F15&F8&F9 -> J - New York City1x0 GE 7HA.02 25ppmDual fuel with SCR | G14: =G15&G8&G9 -> K - Long Island1x0 GE 7HA.02 25ppmDual fuel with SCR | I14: =I15&I8&I9 -> C - Central1x0 GE 7HA.02 15ppmGas only without SCR
D15: Zone | E15: G - Hudson Valley (Rockland) | F15: J - New York City | G15: K - Long Island | I15: C - Central
D17: EPC Costs
D18: Labor | E18: 72900000 | F18: 99220000 | G18: 96770000 | I18: 39020000
D19: Materials | E19: 61860000 | F19: 65190000 | G19: 65300000 | I19: 29530000
D20: Turbines or Batteries | E20: 68500000 | F20: 68500000 | G20: 68500000 | I20: 67000000
D21: Other | E21: 64180000 | F21: 69580000 | G21: 68860000 | I21: 45180000
D22: Total EPC Costs | E22: 267440000 | F22: 302490000 | G22: 299430000 | I22: 180730000
D25: Owner's Costs
D26: Owner's Project Development | E26: 370000 | F26: 480000 | G26: 410000 | I26: 370000
D27: Owner's Operational Personnel Prior to COD | E27: 440000 | F27: 570000 | G27: 480000 | I27: 440000
D28: Owner's Engineer | E28: 1020000 | F28: 1330000 | G28: 1120000 | I28: 1020000
D29: Owner's Project Management | E29: 1130000 | F29: 1470000 | G29: 1240000 | I29: 1130000
D30: Owner's Legal Costs | E30: 1000000 | F30: 1300000 | G30: 1100000 | I30: 1000000
D31: Owner's Start-up Engineering and Commissioning | E31: 270000 | F31: 350000 | G31: 300000 | I31: 270000
D32: Sales Tax | E32: 0 | F32: 0 | G32: 0 | I32: 0
D33: Construction Power and Water | E33: 550000 | F33: 720000 | G33: 610000 | I33: 550000
D34: Permitting and Licensing Fees | E34: 1000000 | F34: 1300000 | G34: 1100000 | I34: 1000000
D35: Switchyard | E35: 10250000 | F35: 43800000 | G35: 5590000 | I35: 10250000
D36: Electrical Interconnection and Deliverability | E36: 11000000 | F36: 13010000 | G36: 6500000 | I36: 11000000
D37: Gas Interconnection and Reinforcement | E37: 23500000 | F37: 20000000 | G37: 23500000 | I37: 23500000
D38: System Deliverability Upgrade Costs | E38: 0 | F38: 0 | G38: 0 | I38: 0
D39: Water Supply Infrastructure | E39: 0 | F39: 10900000 | G39: 0 | I39: 0
D40: Emission Reduction Credits | E40: 400000 | F40: 400000 | G40: 400000 | I40: 400000
D41: Political Concessions & Area Development | E41: 500000 | F41: 650000 | G41: 550000 | I41: 500000
D42: Startup/Testing (Fuel & Consumables) | E42: 4500000 | F42: 4500000 | G42: 4500000 | I42: 1150000
D43: Initial Fuel Inventory | E43: 7240000 | F43: 7240000 | G43: 7240000 | I43: 0
D44: Site Security | E44: 580000 | F44: 750000 | G44: 640000 | I44: 580000
D45: Operating Spare Parts | E45: 6500000 | F45: 6500000 | G45: 6500000 | I45: 6500000
D47: Builders Risk Insurance (0.45% of Construction Costs) | E47: 1203480 | F47: 1361205 | G47: 1347435 | I47: 813285
D48: Owner's Contingency (5% for Screening Purposes) | E48: 16944674 | F48: 20956060.25 | G48: 18127871.75 | I48: 12060164.25
D49: Total Owner's Costs | E49: 88398154 | F49: 137587265.2 | G49: 81255306.75 | I49: 72533449.25
D51: Capital Costs without AFUDC ($2020) | E51: 355838154 | F51: 440077265.2 | G51: 380685306.8 | I51: 253263449.2
D52: Capital Costs without AFUDC ($2020/ICAP kW) | E52: =E51/(E13*1000) -> 1025.470184 | F52: 1261.689407 | G52: 1091.414297 | I52: =I51/(I13*1000) -> 775.2171694
B54: 2021-2022 | D54: ="Capital Costs without AFUDC ($"&B54&")" -> Capital Costs without AFUDC ($2021-2022) | E54: =IFERROR(E$51*(1+INDEX('Escalation Factor'!$C$36:$E$40, MATCH($B54, 'Escalation Factor'!$C$36:$C$40, 0), MATCH(E$8, 'Escalation Factor'!$C$36:$E$36, 0))), "-") -> 366341419.3 | F54: =IFERROR(F$51*(1+INDEX('Escalation Factor'!$C$36:$E$40, MATCH($B54, 'Escalation Factor'!$C$36:$C$40, 0), MATCH(F$8, 'Escalation Factor'!$C$36:$E$36, 0))), "-") -> 453067014.1 | G54: =IFERROR(G$51*(1+INDEX('Escalation Factor'!$C$36:$E$40, MATCH($B54, 'Escalation Factor'!$C$36:$C$40, 0), MATCH(G$8, 'Escalation Factor'!$C$36:$E$36, 0))), "-") -> 391921984.8 | I54: =IFERROR(I$51*(1+INDEX('Escalation Factor'!$C$36:$E$40, MATCH($B54, 'Escalation Factor'!$C$36:$C$40, 0), MATCH(I$8, 'Escalation Factor'!$C$36:$E$36, 0))), "-") -> 261012103.8
B55: 2021-2022 | C55: Capital Costs without AFUDC2021-2022 | D55: ="Capital Costs without AFUDC ($"&B55&"/ICAP kW)" -> Capital Costs without AFUDC ($2021-2022/ICAP kW) | E55: =IFERROR(E$52*(1+INDEX('Escalation Factor'!$C$36:$E$40, MATCH($B55, 'Escalation Factor'!$C$36:$C$40, 0), MATCH(E$8, 'Escalation Factor'!$C$36:$E$36, 0))), "-") -> 1055.73896 | F55: =IFERROR(F$52*(1+INDEX('Escalation Factor'!$C$36:$E$40, MATCH($B55, 'Escalation Factor'!$C$36:$C$40, 0), MATCH(F$8, 'Escalation Factor'!$C$36:$E$36, 0))), "-") -> 1298.93066 | G55: =IFERROR(G$52*(1+INDEX('Escalation Factor'!$C$36:$E$40, MATCH($B55, 'Escalation Factor'!$C$36:$C$40, 0), MATCH(G$8, 'Escalation Factor'!$C$36:$E$36, 0))), "-") -> 1123.629543 | I55: =IFERROR(I$52*(1+INDEX('Escalation Factor'!$C$36:$E$40, MATCH($B55, 'Escalation Factor'!$C$36:$C$40, 0), MATCH(I$8, 'Escalation Factor'!$C$36:$E$36, 0))), "-") -> 798.9351202
B56: 2021-2022 | D56: ="Total EPC Costs ($"&B54&")" -> Total EPC Costs ($2021-2022) | E56: =IFERROR(E$22*(1+INDEX('Escalation Factor'!$C$36:$E$40, MATCH($B56, 'Escalation Factor'!$C$36:$C$40, 0), MATCH(E$8, 'Escalation Factor'!$C$36:$E$36, 0))), "-") -> 275334019.3 | F56: =IFERROR(F$22*(1+INDEX('Escalation Factor'!$C$36:$E$40, MATCH($B56, 'Escalation Factor'!$C$36:$C$40, 0), MATCH(F$8, 'Escalation Factor'!$C$36:$E$36, 0))), "-") -> 311418589.2 | G56: =IFERROR(G$22*(1+INDEX('Escalation Factor'!$C$36:$E$40, MATCH($B56, 'Escalation Factor'!$C$36:$C$40, 0), MATCH(G$8, 'Escalation Factor'!$C$36:$E$36, 0))), "-") -> 308268267.3 | I56: =IFERROR(I$22*(1+INDEX('Escalation Factor'!$C$36:$E$40, MATCH($B56, 'Escalation Factor'!$C$36:$C$40, 0), MATCH(I$8, 'Escalation Factor'!$C$36:$E$36, 0))), "-") -> 186259476.7
B57: 2021-2022 | C57: Total EPC Costs2021-2022 | D57: ="Total EPC Costs ($"&B55&"/ICAP kW)" -> Total EPC Costs ($2021-2022/ICAP kW) | E57: =IFERROR(E56/(E$13*1000),"-") -> 793.4697963 | F57: 892.8285242 | G57: 883.7966379 | I57: =IFERROR(I56/(I$13*1000),"-") -> 570.1238955
B59: 2022-2023 | D59: ="Capital Costs without AFUDC ($"&B59&")" -> Capital Costs without AFUDC ($2022-2023) | E59: =IFERROR(E$54*(1+INDEX('Escalation Factor'!$C$36:$E$40, MATCH($B59, 'Escalation Factor'!$C$36:$C$40, 0), MATCH(E$8, 'Escalation Factor'!$C$36:$E$36, 0))), "-") -> - | F59: =IFERROR(F$54*(1+INDEX('Escalation Factor'!$C$36:$E$40, MATCH($B59, 'Escalation Factor'!$C$36:$C$40, 0), MATCH(F$8, 'Escalation Factor'!$C$36:$E$36, 0))), "-") -> - | G59: =IFERROR(G$54*(1+INDEX('Escalation Factor'!$C$36:$E$40, MATCH($B59, 'Escalation Factor'!$C$36:$C$40, 0), MATCH(G$8, 'Escalation Factor'!$C$36:$E$36, 0))), "-") -> - | I59: =IFERROR(I$54*(1+INDEX('Escalation Factor'!$C$36:$E$40, MATCH($B59, 'Escalation Factor'!$C$36:$C$40, 0), MATCH(I$8, 'Escalation Factor'!$C$36:$E$36, 0))), "-") -> -
B60: 2022-2023 | C60: Capital Costs without AFUDC2022-2023 | D60: ="Capital Costs without AFUDC ($"&B60&"/ICAP kW)" -> Capital Costs without AFUDC ($2022-2023/ICAP kW) | E60: =IFERROR(E$55*(1+INDEX('Escalation Factor'!$C$36:$E$40, MATCH($B60, 'Escalation Factor'!$C$36:$C$40, 0), MATCH(E$8, 'Escalation Factor'!$C$36:$E$36, 0))), "-") -> - | F60: =IFERROR(F$55*(1+INDEX('Escalation Factor'!$C$36:$E$40, MATCH($B60, 'Escalation Factor'!$C$36:$C$40, 0), MATCH(F$8, 'Escalation Factor'!$C$36:$E$36, 0))), "-") -> - | G60: =IFERROR(G$55*(1+INDEX('Escalation Factor'!$C$36:$E$40, MATCH($B60, 'Escalation Factor'!$C$36:$C$40, 0), MATCH(G$8, 'Escalation Factor'!$C$36:$E$36, 0))), "-") -> - | I60: =IFERROR(I$55*(1+INDEX('Escalation Factor'!$C$36:$E$40, MATCH($B60, 'Escalation Factor'!$C$36:$C$40, 0), MATCH(I$8, 'Escalation Factor'!$C$36:$E$36, 0))), "-") -> -
B61: 2022-2023 | D61: ="Total EPC Costs ($"&B59&")" -> Total EPC Costs ($2022-2023) | E61: =IFERROR(E$56*(1+INDEX('Escalation Factor'!$C$36:$E$40, MATCH($B61, 'Escalation Factor'!$C$36:$C$40, 0), MATCH(E$8, 'Escalation Factor'!$C$36:$E$36, 0))), "-") -> - | F61: =IFERROR(F$56*(1+INDEX('Escalation Factor'!$C$36:$E$40, MATCH($B61, 'Escalation Factor'!$C$36:$C$40, 0), MATCH(F$8, 'Escalation Factor'!$C$36:$E$36, 0))), "-") -> - | G61: =IFERROR(G$56*(1+INDEX('Escalation Factor'!$C$36:$E$40, MATCH($B61, 'Escalation Factor'!$C$36:$C$40, 0), MATCH(G$8, 'Escalation Factor'!$C$36:$E$36, 0))), "-") -> - | I61: =IFERROR(I$56*(1+INDEX('Escalation Factor'!$C$36:$E$40, MATCH($B61, 'Escalation Factor'!$C$36:$C$40, 0), MATCH(I$8, 'Escalation Factor'!$C$36:$E$36, 0))), "-") -> -
B62: 2022-2023 | C62: Total EPC Costs2022-2023 | D62: ="Total EPC Costs ($"&B60&"/ICAP kW)" -> Total EPC Costs ($2022-2023/ICAP kW) | E62: =IFERROR(E61/(E$13*1000),"-") -> - | F62: - | G62: - | I62: =IFERROR(I61/(I$13*1000),"-") -> -
B64: 2023-2024 | D64: ="Capital Costs without AFUDC ($"&B64&")" -> Capital Costs without AFUDC ($2023-2024) | E64: =IFERROR(E$54*(1+INDEX('Escalation Factor'!$C$36:$E$40, MATCH($B64, 'Escalation Factor'!$C$36:$C$40, 0), MATCH(E$8, 'Escalation Factor'!$C$36:$E$36, 0))), "-") -> - | F64: =IFERROR(F$54*(1+INDEX('Escalation Factor'!$C$36:$E$40, MATCH($B64, 'Escalation Factor'!$C$36:$C$40, 0), MATCH(F$8, 'Escalation Factor'!$C$36:$E$36, 0))), "-") -> - | G64: =IFERROR(G$54*(1+INDEX('Escalation Factor'!$C$36:$E$40, MATCH($B64, 'Escalation Factor'!$C$36:$C$40, 0), MATCH(G$8, 'Escalation Factor'!$C$36:$E$36, 0))), "-") -> - | I64: =IFERROR(I$54*(1+INDEX('Escalation Factor'!$C$36:$E$40, MATCH($B64, 'Escalation Factor'!$C$36:$C$40, 0), MATCH(I$8, 'Escalation Factor'!$C$36:$E$36, 0))), "-") -> -
B65: 2023-2024 | C65: Capital Costs without AFUDC2023-2024 | D65: ="Capital Costs without AFUDC ($"&B65&"/ICAP kW)" -> Capital Costs without AFUDC ($2023-2024/ICAP kW) | E65: =IFERROR(E$55*(1+INDEX('Escalation Factor'!$C$36:$E$40, MATCH($B65, 'Escalation Factor'!$C$36:$C$40, 0), MATCH(E$8, 'Escalation Factor'!$C$36:$E$36, 0))), "-") -> - | F65: =IFERROR(F$55*(1+INDEX('Escalation Factor'!$C$36:$E$40, MATCH($B65, 'Escalation Factor'!$C$36:$C$40, 0), MATCH(F$8, 'Escalation Factor'!$C$36:$E$36, 0))), "-") -> - | G65: =IFERROR(G$55*(1+INDEX('Escalation Factor'!$C$36:$E$40, MATCH($B65, 'Escalation Factor'!$C$36:$C$40, 0), MATCH(G$8, 'Escalation Factor'!$C$36:$E$36, 0))), "-") -> - | I65: =IFERROR(I$55*(1+INDEX('Escalation Factor'!$C$36:$E$40, MATCH($B65, 'Escalation Factor'!$C$36:$C$40, 0), MATCH(I$8, 'Escalation Factor'!$C$36:$E$36, 0))), "-") -> -
B66: 2023-2024 | D66: ="Total EPC Costs ($"&B64&")" -> Total EPC Costs ($2023-2024) | E66: =IFERROR(E$56*(1+INDEX('Escalation Factor'!$C$36:$E$40, MATCH($B66, 'Escalation Factor'!$C$36:$C$40, 0), MATCH(E$8, 'Escalation Factor'!$C$36:$E$36, 0))), "-") -> - | F66: =IFERROR(F$56*(1+INDEX('Escalation Factor'!$C$36:$E$40, MATCH($B66, 'Escalation Factor'!$C$36:$C$40, 0), MATCH(F$8, 'Escalation Factor'!$C$36:$E$36, 0))), "-") -> - | G66: =IFERROR(G$56*(1+INDEX('Escalation Factor'!$C$36:$E$40, MATCH($B66, 'Escalation Factor'!$C$36:$C$40, 0), MATCH(G$8, 'Escalation Factor'!$C$36:$E$36, 0))), "-") -> - | I66: =IFERROR(I$56*(1+INDEX('Escalation Factor'!$C$36:$E$40, MATCH($B66, 'Escalation Factor'!$C$36:$C$40, 0), MATCH(I$8, 'Escalation Factor'!$C$36:$E$36, 0))), "-") -> -
B67: 2023-2024 | C67: Total EPC Costs2023-2024 | D67: ="Total EPC Costs ($"&B65&"/ICAP kW)" -> Total EPC Costs ($2023-2024/ICAP kW) | E67: =IFERROR(E66/(E$13*1000),"-") -> - | F67: - | G67: - | I67: =IFERROR(I66/(I$13*1000),"-") -> -
B69: 2024-2025 | D69: ="Capital Costs without AFUDC ($"&B69&")" -> Capital Costs without AFUDC ($2024-2025) | E69: =IFERROR(E$54*(1+INDEX('Escalation Factor'!$C$36:$E$40, MATCH($B69, 'Escalation Factor'!$C$36:$C$40, 0), MATCH(E$8, 'Escalation Factor'!$C$36:$E$36, 0))), "-") -> - | F69: =IFERROR(F$54*(1+INDEX('Escalation Factor'!$C$36:$E$40, MATCH($B69, 'Escalation Factor'!$C$36:$C$40, 0), MATCH(F$8, 'Escalation Factor'!$C$36:$E$36, 0))), "-") -> - | G69: =IFERROR(G$54*(1+INDEX('Escalation Factor'!$C$36:$E$40, MATCH($B69, 'Escalation Factor'!$C$36:$C$40, 0), MATCH(G$8, 'Escalation Factor'!$C$36:$E$36, 0))), "-") -> - | I69: =IFERROR(I$54*(1+INDEX('Escalation Factor'!$C$36:$E$40, MATCH($B69, 'Escalation Factor'!$C$36:$C$40, 0), MATCH(I$8, 'Escalation Factor'!$C$36:$E$36, 0))), "-") -> -
B70: 2024-2025 | C70: Capital Costs without AFUDC2024-2025 | D70: ="Capital Costs without AFUDC ($"&B70&"/ICAP kW)" -> Capital Costs without AFUDC ($2024-2025/ICAP kW) | E70: =IFERROR(E$55*(1+INDEX('Escalation Factor'!$C$36:$E$40, MATCH($B70, 'Escalation Factor'!$C$36:$C$40, 0), MATCH(E$8, 'Escalation Factor'!$C$36:$E$36, 0))), "-") -> - | F70: =IFERROR(F$55*(1+INDEX('Escalation Factor'!$C$36:$E$40, MATCH($B70, 'Escalation Factor'!$C$36:$C$40, 0), MATCH(F$8, 'Escalation Factor'!$C$36:$E$36, 0))), "-") -> - | G70: =IFERROR(G$55*(1+INDEX('Escalation Factor'!$C$36:$E$40, MATCH($B70, 'Escalation Factor'!$C$36:$C$40, 0), MATCH(G$8, 'Escalation Factor'!$C$36:$E$36, 0))), "-") -> - | I70: =IFERROR(I$55*(1+INDEX('Escalation Factor'!$C$36:$E$40, MATCH($B70, 'Escalation Factor'!$C$36:$C$40, 0), MATCH(I$8, 'Escalation Factor'!$C$36:$E$36, 0))), "-") -> -
B71: 2024-2025 | D71: ="Total EPC Costs ($"&B69&")" -> Total EPC Costs ($2024-2025) | E71: =IFERROR(E$56*(1+INDEX('Escalation Factor'!$C$36:$E$40, MATCH($B71, 'Escalation Factor'!$C$36:$C$40, 0), MATCH(E$8, 'Escalation Factor'!$C$36:$E$36, 0))), "-") -> - | F71: =IFERROR(F$56*(1+INDEX('Escalation Factor'!$C$36:$E$40, MATCH($B71, 'Escalation Factor'!$C$36:$C$40, 0), MATCH(F$8, 'Escalation Factor'!$C$36:$E$36, 0))), "-") -> - | G71: =IFERROR(G$56*(1+INDEX('Escalation Factor'!$C$36:$E$40, MATCH($B71, 'Escalation Factor'!$C$36:$C$40, 0), MATCH(G$8, 'Escalation Factor'!$C$36:$E$36, 0))), "-") -> - | I71: =IFERROR(I$56*(1+INDEX('Escalation Factor'!$C$36:$E$40, MATCH($B71, 'Escalation Factor'!$C$36:$C$40, 0), MATCH(I$8, 'Escalation Factor'!$C$36:$E$36, 0))), "-") -> -
B72: 2024-2025 | C72: Total EPC Costs2024-2025 | D72: ="Total EPC Costs ($"&B70&"/ICAP kW)" -> Total EPC Costs ($2024-2025/ICAP kW) | E72: =IFERROR(E71/(E$13*1000),"-") -> - | F72: - | G72: - | I72: =IFERROR(I71/(I$13*1000),"-") -> -
D74: Updated 7/30/2020
